Workbook

Sheet YKK、YLKK 6KV
A1: YKK、YLKK系列（6kV）高压三相异步电动机技术数据
A2: 型号 | B2: 额定功率（kW） | C2: 定子电流（A） | D2: 额定转速（r/min） | E2: 效率（%） | F2: 功率因数（cosψ） | G2: 最大转矩额定转矩 | H2: 堵转转矩额定转矩 | I2: 堵转电流额定电流 | J2: 电动机转动惯量 | L2: 概量（kg)
J3: 电机 Jm （kg·m2） | K3: 允许负载 J (kg·m2）
A4: YKK3553-2 | B4: 220 | C4: =B4*100/1.732/E4/F4/6 -> 27.2 | D4: 2973 | E4: 91.7 | F4: 0.85 | G4: 1.8 | H4: 0.6 | I4: 7.0 | J4: 2.7 | K4: 22 | L4: 2170
A5: YKK3554-2 | B5: 250 | C5: 30.8 | D5: 2973 | E5: 91.8 | F5: 0.85 | G5: 1.8 | H5: 0.6 | I5: 7.0 | J5: 3.0 | K5: 24 | L5: 2250
A6: YKK3555-2 | B6: 280 | C6: 34.5 | D6: 2973 | E6: 92.0 | F6: 0.85 | G6: 1.8 | H6: 0.6 | I6: 7.0 | J6: 3.4 | K6: 26 | L6: 2350
A7: YKK3556-2 | B7: 315 | C7: 38.6 | D7: 2973 | E7: 92.4 | F7: 0.85 | G7: 1.8 | H7: 0.6 | I7: 7.0 | J7: 3.6 | K7: 27 | L7: 2400
A8: YKK4001-2 | B8: 355 | C8: 42.9 | D8: 2975 | E8: 92.7 | F8: 0.86 | G8: 1.8 | H8: 0.6 | I8: 7.0 | J8: 5.3 | K8: 30 | L8: 2870
A9: YKK4002-2 | B9: 400 | C9: 48.1 | D9: 2975 | E9: 93.0 | F9: 0.86 | G9: 1.8 | H9: 0.6 | I9: 7.0 | J9: 5.7 | K9: 32 | L9: 2930
A10: YKK4003-2 | B10: 450 | C10: 54.0 | D10: 2975 | E10: 93.3 | F10: 0.86 | G10: 1.8 | H10: 0.6 | I10: 7.0 | J10: 6.5 | K10: 34 | L10: 3010
A11: YKK4004-2 | B11: 500 | C11: 59.8 | D11: 2975 | E11: 93.6 | F11: 0.86 | G11: 1.8 | H11: 0.6 | I11: 7.0 | J11: 6.8 | K11: 35 | L11: 3070
A12: YKK4005-2 | B12: 560 | C12: 66.8 | D12: 2975 | E12: 93.8 | F12: 0.86 | G12: 1.8 | H12: 0.6 | I12: 7.0 | J12: 7.1 | K12: 38 | L12: 3150
A13: YKK4501-2 | B13: 560 | C13: 66.8 | D13: 2980 | E13: 93.8 | F13: 0.86 | G13: 1.8 | H13: 0.6 | I13: 7.0 | J13: 9.4 | K13: 40 | L13: 4000
A14: YKK4502-2 | B14: 630 | C14: 74.1 | D14: 2980 | E14: 94.0 | F14: 0.87 | G14: 1.8 | H14: 0.6 | I14: 7.0 | J14: 10.8 | K14: 44 | L14: 4230
A15: YKK4503-2 | B15: 710 | C15: 83.5 | D15: 2980 | E15: 94.1 | F15: 0.87 | G15: 1.8 | H15: 0.6 | I15: 7.0 | J15: 11.8 | K15: 46 | L15: 4460
A16: YKK4504-2 | B16: 800 | C16: 93.8 | D16: 2980 | E16: 94.3 | F16: 0.87 | G16: 1.8 | H16: 0.6 | I16: 7.0 | J16: 12.4 | K16: 48 | L16: 4700
A17: YKK4505-2 | B17: 900 | C17: 105 | D17: 2980 | E17: 94.5 | F17: 0.87 | G17: 1.8 | H17: 0.6 | I17: 7.0 | J17: 12.8 | K17: 50 | L17: 4950
A18: YKK5001-2 | B18: 900 | C18: 105 | D18: 2982 | E18: 94.5 | F18: 0.87 | G18: 1.8 | H18: 0.6 | I18: 7.0 | J18: 17.2 | K18: 73 | L18: 5280
A19: YKK5002-2 | B19: 1000 | C19: 117 | D19: 2982 | E19: 94.6 | F19: 0.87 | G19: 1.8 | H19: 0.6 | I19: 7.0 | J19: 19.1 | K19: 85 | L19: 5490
A20: YKK5003-2 | B20: 1120 | C20: 131 | D20: 2982 | E20: 94.7 | F20: 0.87 | G20: 1.8 | H20: 0.6 | I20: 7.0 | J20: 21.1 | K20: 93 | L20: 5700
A21: YKK5004-2 | B21: 1250 | C21: 146 | D21: 2982 | E21: 94.9 | F21: 0.87 | G21: 1.8 | H21: 0.6 | I21: 7.0 | J21: 23.0 | K21: 101 | L21: 5920
A22: YKK5005-2 | B22: 1400 | C22: 161 | D22: 2982 | E22: 95.0 | F22: 0.88 | G22: 1.8 | H22: 0.6 | I22: 7.0 | J22: 24.3 | K22: 105 | L22: 6150
A23: YKK560S1-2 | B23: 1400 | C23: 161 | D23: 2982 | E23: 95.0 | F23: 0.88 | G23: 1.8 | H23: 0.6 | I23: 7.0 | J23: 39.8 | K23: 106 | L23: 6800
A24: YKK5601-2 | B24: 1600 | C24: 184 | D24: 2982 | E24: 95.1 | F24: 0.88 | G24: 1.8 | H24: 0.6 | I24: 7.0 | J24: 42.2 | K24: 107 | L24: 6900
A25: YKK5602-2 | B25: 1800 | C25: 207 | D25: 2982 | E25: 95.2 | F25: 0.88 | G25: 1.8 | H25: 0.6 | I25: 7.0 | J25: 46.4 | K25: 108 | L25: 7160
A26: YKK5603-2 | B26: 2000 | C26: 229 | D26: 2982 | E26: 95.4 | F26: 0.88 | G26: 1.8 | H26: 0.6 | I26: 7.0 | J26: 47.0 | K26: 109 | L26: 7420
A27: YKK630S1-2 | B27: 2000 | C27: 229 | D27: 2982 | E27: 95.4 | F27: 0.88 | G27: 1.8 | H27: 0.6 | I27: 7.0 | J27: 47.4 | K27: 110 | L27: 9450
A28: YKK6301-2 | B28: 2100 | C28: 241 | D28: 2982 | E28: 95.4 | F28: 0.88 | G28: 1.8 | H28: 0.6 | I28: 7.0 | J28: 49.2 | K28: 112 | L28: 9600
A29: YKK6302-2 | B29: 2240 | C29: 256 | D29: 2982 | E29: 95.5 | F29: 0.88 | G29: 1.8 | H29: 0.6 | I29: 7.0 | J29: 51.7 | K29: 114 | L29: 9850
A30: YKK6303-2 | B30: 2350 | C30: 269 | D30: 2982 | E30: 95.5 | F30: 0.88 | G30: 1.8 | H30: 0.6 | I30: 7.0 | J30: 54.5 | K30: 117 | L30: 10050
A31: YKK6304-2 | B31: 2500 | C31: 286 | D31: 2982 | E31: 95.6 | F31: 0.88 | G31: 1.8 | H31: 0.6 | I31: 7.0 | J31: 57.1 | K31: 120 | L31: 10250
A32: YKK6305-2 | B32: 2650 | C32: 303 | D32: 2982 | E32: 95.6 | F32: 0.88 | G32: 1.8 | H32: 0.6 | I32: 7.0 | J32: 60.0 | K32: 123 | L32: 10450
A33: YKK6306-2 | B33: 2800 | C33: 320 | D33: 2982 | E33: 95.6 | F33: 0.88 | G33: 1.8 | H33: 0.6 | I33: 7.0 | J33: 63.2 | K33: 126 | L33: 10650
A34: YKK6307-2 | B34: 2900 | C34: 332 | D34: 2982 | E34: 95.6 | F34: 0.88 | G34: 1.8 | H34: 0.6 | I34: 7.0 | J34: 66.5 | K34: 128 | L34: 10820
A35: YKK6308-2 | B35: 3150 | C35: 360 | D35: 2982 | E35: 95.7 | F35: 0.88 | G35: 1.8 | H35: 0.6 | I35: 7.0 | J35: 69.8 | K35: 131 | L35: 11170
A36: YKK3551-4 | B36: 185 | C36: 22.8 | D36: 1487 | E36: 91.9 | F36: 0.85 | G36: 1.8 | H36: 0.7 | I36: 6.5 | J36: 3.0 | K36: 68 | L36: 2420
A37: YKK3552-4 | B37: 200 | C37: =B37*100/1.732/E37/F37/6 -> 24.6 | D37: 1487 | E37: 92.1 | F37: 0.85 | G37: 1.8 | H37: 0.7 | I37: 6.5 | J37: 3.4 | K37: 78 | L37: 2470
A38: YKK3553-4 | B38: 220 | C38: 27.0 | D38: 1487 | E38: 92.2 | F38: 0.85 | G38: 1.8 | H38: 0.7 | I38: 6.5 | J38: 3.8 | K38: 88 | L38: 2520
A39: YKK3554-4 | B39: 250 | C39: 30.7 | D39: 1487 | E39: 92.3 | F39: 0.85 | G39: 1.8 | H39: 0.7 | I39: 6.5 | J39: 4.2 | K39: 97 | L39: 2570
A40: YKK3555-4 | B40: 280 | C40: 33.9 | D40: 1487 | E40: 92.4 | F40: 0.86 | G40: 1.8 | H40: 0.7 | I40: 6.5 | J40: 4.6 | K40: 102 | L40: 2630
A41: YKK3556-4 | B41: 315 | C41: 38.1 | D41: 1487 | E41: 92.6 | F41: 0.86 | G41: 1.8 | H41: 0.7 | I41: 6.5 | J41: 5.0 | K41: 107 | L41: 2680
A42: YKK400S2-4 | B42: 280 | C42: 33.9 | D42: 1487 | E42: 92.4 | F42: 0.86 | G42: 1.8 | H42: 0.7 | I42: 6.5 | J42: 5.8 | K42: 108 | L42: 2735
A43: YKK400S1-4 | B43: 315 | C43: 38.1 | D43: 1487 | E43: 92.6 | F43: 0.86 | G43: 1.8 | H43: 0.7 | I43: 6.5 | J43: 6.0 | K43: 120 | L43: 2805
A44: YKK4001-4 | B44: 355 | C44: 42.8 | D44: 1487 | E44: 92.8 | F44: 0.86 | G44: 1.8 | H44: 0.7 | I44: 6.5 | J44: 6.2 | K44: 133 | L44: 2855
A45: YKK4002-4 | B45: 400 | C45: 48.1 | D45: 1487 | E45: 93.0 | F45: 0.86 | G45: 1.8 | H45: 0.7 | I45: 6.5 | J45: 6.5 | K45: 147 | L45: 2930
A46: YKK4003-4 | B46: 450 | C46: 54.0 | D46: 1487 | E46: 93.2 | F46: 0.86 | G46: 1.8 | H46: 0.7 | I46: 6.5 | J46: 7.0 | K46: 161 | L46: 2980
A47: YKK4004-4 | B47: 500 | C47: 59.9 | D47: 1487 | E47: 93.4 | F47: 0.86 | G47: 1.8 | H47: 0.7 | I47: 6.5 | J47: 7.5 | K47: 170 | L47: 3080
A48: YKK4005-4 | B48: 560 | C48: 66.9 | D48: 1487 | E48: 93.6 | F48: 0.86 | G48: 1.8 | H48: 0.7 | I48: 6.5 | J48: 8.0 | K48: 175 | L48: 3150
A49: YKK450S1-4 | B49: 500 | C49: 59.9 | D49: 1487 | E49: 93.4 | F49: 0.86 | G49: 1.8 | H49: 0.7 | I49: 6.5 | J49: 10.0 | K49: 178 | L49: 3700
A50: YKK4501-4 | B50: 560 | C50: 66.9 | D50: 1487 | E50: 93.6 | F50: 0.86 | G50: 1.8 | H50: 0.7 | I50: 6.5 | J50: 11.0 | K50: 197 | L50: 3860
A51: YKK4502-4 | B51: 630 | C51: 75.2 | D51: 1487 | E51: 93.8 | F51: 0.86 | G51: 1.8 | H51: 0.7 | I51: 6.5 | J51: 12.0 | K51: 218 | L51: 4020
A52: YKK4503-4 | B52: 710 | C52: 84.5 | D52: 1487 | E52: 94.0 | F52: 0.86 | G52: 1.8 | H52: 0.7 | I52: 6.5 | J52: 13.0 | K52: 241 | L52: 4180
A53: YKK4504-4 | B53: 800 | C53: 93.8 | D53: 1487 | E53: 94.3 | F53: 0.87 | G53: 1.8 | H53: 0.7 | I53: 6.5 | J53: 14.0 | K53: 250 | L53: 4360
A54: YKK4505-4 | B54: 900 | C54: 105 | D54: 1487 | E54: 94.4 | F54: 0.87 | G54: 1.8 | H54: 0.7 | I54: 6.5 | J54: 15.0 | K54: 261 | L54: 4520
A55: YKK500S1-4 | B55: 800 | C55: 93.8 | D55: 1489 | E55: 94.3 | F55: 0.87 | G55: 1.8 | H55: 0.7 | I55: 6.5 | J55: 22.0 | K55: 266 | L55: 5420
A56: YKK5001-4 | B56: 900 | C56: 105 | D56: 1489 | E56: 94.4 | F56: 0.87 | G56: 1.8 | H56: 0.7 | I56: 6.5 | J56: 24.0 | K56: 290 | L56: 5550
A57: YKK5002-4 | B57: 1000 | C57: 117 | D57: 1489 | E57: 94.5 | F57: 0.87 | G57: 1.8 | H57: 0.7 | I57: 6.5 | J57: 26.0 | K57: 318 | L57: 5640
A58: YKK5003-4 | B58: 1120 | C58: 131 | D58: 1489 | E58: 94.6 | F58: 0.87 | G58: 1.8 | H58: 0.7 | I58: 6.5 | J58: 30.0 | K58: 347 | L58: 5750
A59: YKK5004-4 | B59: 1250 | C59: 144 | D59: 1489 | E59: 94.8 | F59: 0.88 | G59: 1.8 | H59: 0.7 | I59: 6.5 | J59: 34.0 | K59: 363 | L59: 5870
A60: YKK5005-4 | B60: 1400 | C60: 161 | D60: 1489 | E60: 94.9 | F60: 0.88 | G60: 1.8 | H60: 0.7 | I60: 6.5 | J60: 38.0 | K60: 375 | L60: 5990
A61: YKK560S2-4 | B61: 1250 | C61: 144 | D61: 1490 | E61: 94.8 | F61: 0.88 | G61: 1.8 | H61: 0.6 | I61: 6.5 | J61: 51.0 | K61: 379 | L61: 7800
A62: YKK560S1-4 | B62: 1400 | C62: 161 | D62: 1490 | E62: 94.9 | F62: 0.88 | G62: 1.8 | H62: 0.6 | I62: 6.5 | J62: 57.0 | K62: 460 | L62: 8050
A63: YKK5601-4 | B63: 1600 | C63: 184 | D63: 1490 | E63: 95.0 | F63: 0.88 | G63: 1.8 | H63: 0.6 | I63: 6.5 | J63: 60.0 | K63: 470 | L63: 8300
A64: YKK5602-4 | B64: 1800 | C64: 207 | D64: 1490 | E64: 95.1 | F64: 0.88 | G64: 1.8 | H64: 0.6 | I64: 6.5 | J64: 65.0 | K64: 480 | L64: 8560
A65: YKK5603-4 | B65: 2000 | C65: 229 | D65: 1490 | E65: 95.3 | F65: 0.88 | G65: 1.8 | H65: 0.6 | I65: 6.5 | J65: 71.0 | K65: 490 | L65: 8760
A66: YKK630S2-4 | B66: 1800 | C66: 207 | D66: 1491 | E66: 95.1 | F66: 0.88 | G66: 1.8 | H66: 0.6 | I66: 6.5 | J66: 96.0 | K66: 498 | L66: 10400
A67: YKK630S1-4 | B67: 2000 | C67: 229 | D67: 1491 | E67: 95.3 | F67: 0.88 | G67: 1.8 | H67: 0.6 | I67: 6.5 | J67: 102.0 | K67: 540 | L67: 10800
A68: YKK6301-4 | B68: 2100 | C68: 241 | D68: 1491 | E68: 95.3 | F68: 0.88 | G68: 1.8 | H68: 0.6 | I68: 6.5 | J68: 108.0 | K68: 570 | L68: 11000
A69: YKK6302-4 | B69: 2240 | C69: 257 | D69: 1491 | E69: 95.4 | F69: 0.88 | G69: 1.8 | H69: 0.6 | I69: 6.5 | J69: 112.0 | K69: 584 | L69: 11200
A70: YKK6303-4 | B70: 2350 | C70: 269 | D70: 1491 | E70: 95.4 | F70: 0.88 | G70: 1.8 | H70: 0.6 | I70: 6.5 | J70: 116.0 | K70: 599 | L70: 11400
A71: YKK6304-4 | B71: 2500 | C71: 286 | D71: 1491 | E71: 95.5 | F71: 0.88 | G71: 1.8 | H71: 0.6 | I71: 6.5 | J71: 120.0 | K71: 615 | L71: 11600
A72: YKK6305-4 | B72: 2650 | C72: 303 | D72: 1491 | E72: 95.6 | F72: 0.88 | G72: 1.8 | H72: 0.6 | I72: 6.5 | J72: 125.0 | K72: 632 | L72: 11790
A73: YKK6306-4 | B73: 2800 | C73: 320 | D73: 1491 | E73: 95.6 | F73: 0.88 | G73: 1.8 | H73: 0.6 | I73: 6.5 | J73: 130.0 | K73: 650 | L73: 11990
A74: YKK6307-4 | B74: 2900 | C74: 332 | D74: 1491 | E74: 95.6 | F74: 0.88 | G74: 1.8 | H74: 0.6 | I74: 6.5 | J74: 134.0 | K74: 668 | L74: 12200
A75: YKK6308-4 | B75: 3150 | C75: 360 | D75: 1491 | E75: 95.8 | F75: 0.88 | G75: 1.8 | H75: 0.6 | I75: 6.5 | J75: 138.0 | K75: 685 | L75: 12400
A76: YKK3553-6 | B76: 185 | C76: 23.7 | D76: 986 | E76: 91.5 | F76: 0.82 | G76: 1.8 | H76: 0.7 | I76: 6.0 | J76: 4.0 | K76: 138 | L76: 2380
A77: YKK3554-6 | B77: 200 | C77: 25.6 | D77: 986 | E77: 91.8 | F77: 0.82 | G77: 1.8 | H77: 0.7 | I77: 6.0 | J77: 4.8 | K77: 150 | L77: 2430
A78: YKK3555-6 | B78: 220 | C78: 28.1 | D78: 986 | E78: 92.0 | F78: 0.82 | G78: 1.8 | H78: 0.7 | I78: 6.0 | J78: 5.7 | K78: 162 | L78: 2480
A79: YKK3556-6 | B79: 250 | C79: 31.8 | D79: 986 | E79: 92.2 | F79: 0.82 | G79: 1.8 | H79: 0.7 | I79: 6.0 | J79: 6.9 | K79: 175 | L79: 2520
A80: YKK400S3-6 | B80: 185 | C80: 23.7 | D80: 989 | E80: 91.5 | F80: 0.82 | G80: 1.8 | H80: 0.7 | I80: 6.0 | J80: 8.0 | K80: 193 | L80: 2640
A81: YKK400S2-6 | B81: 200 | C81: 25.6 | D81: 989 | E81: 91.8 | F81: 0.82 | G81: 1.8 | H81: 0.7 | I81: 6.0 | J81: 8.7 | K81: 210 | L81: 2700
A82: YKK400S1-6 | B82: 220 | C82: 28.1 | D82: 989 | E82: 92.0 | F82: 0.82 | G82: 1.8 | H82: 0.7 | I82: 6.0 | J82: 9.0 | K82: 236 | L82: 2760
A83: YKK4001-6 | B83: 250 | C83: 31.8 | D83: 989 | E83: 92.2 | F83: 0.82 | G83: 1.8 | H83: 0.7 | I83: 6.0 | J83: 10.0 | K83: 262 | L83: 2820
A84: YKK4002-6 | B84: 280 | C84: 35.5 | D84: 989 | E84: 92.5 | F84: 0.82 | G84: 1.8 | H84: 0.7 | I84: 6.0 | J84: 10.8 | K84: 291 | L84: 2930
A85: YKK4003-6 | B85: 315 | C85: 39.8 | D85: 989 | E85: 92.8 | F85: 0.82 | G85: 1.8 | H85: 0.7 | I85: 6.0 | J85: 11.0 | K85: 324 | L85: 2980
A86: YKK4004-6 | B86: 355 | C86: 44.3 | D86: 989 | E86: 93.0 | F86: 0.83 | G86: 1.8 | H86: 0.7 | I86: 6.0 | J86: 11.5 | K86: 340 | L86: 3040
A87: YKK4005-6 | B87: 400 | C87: 49.8 | D87: 989 | E87: 93.1 | F87: 0.83 | G87: 1.8 | H87: 0.7 | I87: 6.0 | J87: 12.2 | K87: 358 | L87: 3100
A88: YKK450S1-6 | B88: 355 | C88: 44.3 | D88: 990 | E88: 93.0 | F88: 0.83 | G88: 1.8 | H88: 0.7 | I88: 6.0 | J88: 14.0 | K88: 361 | L88: 3600
A89: YKK4501-6 | B89: 400 | C89: 49.8 | D89: 990 | E89: 93.1 | F89: 0.83 | G89: 1.8 | H89: 0.7 | I89: 6.0 | J89: 15.0 | K89: 401 | L89: 3690
A90: YKK4502-6 | B90: 450 | C90: 55.9 | D90: 990 | E90: 93.4 | F90: 0.83 | G90: 1.8 | H90: 0.7 | I90: 6.0 | J90: 16.0 | K90: 440 | L90: 3820
A91: YKK4503-6 | B91: 500 | C91: 61.9 | D91: 990 | E91: 93.7 | F91: 0.83 | G91: 1.8 | H91: 0.7 | I91: 6.0 | J91: 17.0 | K91: 487 | L91: 3950
A92: YKK4504-6 | B92: 560 | C92: 68.4 | D92: 990 | E92: 93.8 | F92: 0.84 | G92: 1.8 | H92: 0.7 | I92: 6.0 | J92: 18.0 | K92: 519 | L92: 4090
A93: YKK4505-6 | B93: 630 | C93: 76.9 | D93: 990 | E93: 93.9 | F93: 0.84 | G93: 1.8 | H93: 0.7 | I93: 6.0 | J93: 19.0 | K93: 538 | L93: 4220
A94: YKK500S1-6 | B94: 560 | C94: 68.4 | D94: 992 | E94: 93.8 | F94: 0.84 | G94: 1.8 | H94: 0.7 | I94: 6.0 | J94: 27.0 | K94: 540 | L94: 5030
A95: YKK5001-6 | B95: 630 | C95: 76.9 | D95: 992 | E95: 93.9 | F95: 0.84 | G95: 1.8 | H95: 0.7 | I95: 6.0 | J95: 32.5 | K95: 599 | L95: 5120
A96: YKK5002-6 | B96: 710 | C96: 86.3 | D96: 992 | E96: 94.2 | F96: 0.84 | G96: 1.8 | H96: 0.7 | I96: 6.0 | J96: 34.0 | K96: 665 | L96: 5200
A97: YKK5003-6 | B97: 800 | C97: 97.1 | D97: 992 | E97: 94.4 | F97: 0.84 | G97: 1.8 | H97: 0.7 | I97: 6.0 | J97: 40.0 | K97: 736 | L97: 5880
A98: YKK5004-6 | B98: 900 | C98: 108 | D98: 992 | E98: 94.5 | F98: 0.85 | G98: 1.8 | H98: 0.7 | I98: 6.0 | J98: 45.0 | K98: 780 | L98: 5960
A99: YKK5005-6 | B99: 1000 | C99: 120 | D99: 992 | E99: 94.6 | F99: 0.85 | G99: 1.8 | H99: 0.7 | I99: 6.0 | J99: 49.0 | K99: 802 | L99: 6040
A100: YKK560S2-6 | B100: 900 | C100: 108 | D100: 993 | E100: 94.5 | F100: 0.85 | G100: 1.8 | H100: 0.7 | I100: 6.5 | J100: 64.0 | K100: 805 | L100: 7500
A101: YKK560S1-6 | B101: 1000 | C101: =B101*100/1.732/E101/F101/6 -> 120 | D101: 993 | E101: 94.6 | F101: 0.85 | G101: 1.8 | H101: 0.7 | I101: 6.5 | J101: 70.0 | K101: 886 | L101: 7850
A102: YKK5601-6 | B102: 1120 | C102: 134 | D102: 993 | E102: 94.7 | F102: 0.85 | G102: 1.8 | H102: 0.7 | I102: 6.5 | J102: 75.0 | K102: 927 | L102: 8100
A103: YKK5602-6 | B103: 1250 | C103: 147 | D103: 993 | E103: 94.9 | F103: 0.86 | G103: 1.8 | H103: 0.7 | I103: 6.5 | J103: 80.0 | K103: 968 | L103: 8350
A104: YKK5603-6 | B104: 1400 | C104: 165 | D104: 993 | E104: 95.0 | F104: 0.86 | G104: 1.8 | H104: 0.7 | I104: 6.5 | J104: 86.0 | K104: 1010 | L104: 8600
A105: YKK6302-6 | B105: 1250 | C105: 147 | D105: 993 | E105: 94.9 | F105: 0.86 | G105: 1.8 | H105: 0.7 | I105: 6.5 | J105: 139 | K105: 1068 | L105: 10750
A106: YKK6303-6 | B106: 1400 | C106: 165 | D106: 993 | E106: 95.0 | F106: 0.86 | G106: 1.8 | H106: 0.7 | I106: 6.5 | J106: 147 | K106: 1192 | L106: 11150
A107: YKK6304-6 | B107: 1600 | C107: 188 | D107: 993 | E107: 95.1 | F107: 0.86 | G107: 1.8 | H107: 0.7 | I107: 6.5 | J107: 162 | K107: 1312 | L107: 11500
A108: YKK6305-6 | B108: 1800 | C108: 212 | D108: 993 | E108: 95.2 | F108: 0.86 | G108: 1.8 | H108: 0.7 | I108: 6.5 | J108: 177 | K108: 1430 | L108: 11900
A109: YKK6306-6 | B109: 2000 | C109: 235 | D109: 993 | E109: 95.4 | F109: 0.86 | G109: 1.8 | H109: 0.7 | I109: 6.5 | J109: 192 | K109: 1560 | L109: 12300
A110: YKK6307-6 | B110: 2100 | C110: 246 | D110: 993 | E110: 95.4 | F110: 0.86 | G110: 1.8 | H110: 0.7 | I110: 6.5 | J110: 207 | K110: 1685 | L110: 12600
A111: YKK6308-6 | B111: 2240 | C111: 262 | D111: 993 | E111: 95.5 | F111: 0.86 | G111: 1.8 | H111: 0.7 | I111: 6.5 | J111: 222 | K111: 1815 | L111: 12900
A112: YKK4001-8 | B112: 185 | C112: 24.9 | D112: 742 | E112: 91.6 | F112: 0.78 | G112: 1.8 | H112: 0.8 | I112: 5.5 | J112: 11.0 | K112: 406 | L112: 2785
A113: YKK4002-8 | B113: 200 | C113: 26.8 | D113: 742 | E113: 91.9 | F113: 0.78 | G113: 1.8 | H113: 0.8 | I113: 5.5 | J113: 12.0 | K113: 450 | L113: 2840
A114: YKK4003-8 | B114: 220 | C114: 29.5 | D114: 742 | E114: 92.1 | F114: 0.78 | G114: 1.8 | H114: 0.8 | I114: 5.5 | J114: 13.0 | K114: 502 | L114: 2910
A115: YKK4004-8 | B115: 250 | C115: 33.0 | D115: 742 | E115: 92.2 | F115: 0.79 | G115: 1.8 | H115: 0.8 | I115: 5.5 | J115: 14.0 | K115: 545 | L115: 2980
A116: YKK4005-8 | B116: 280 | C116: 36.9 | D116: 742 | E116: 92.4 | F116: 0.79 | G116: 1.8 | H116: 0.8 | I116: 5.5 | J116: 15.0 | K116: 580 | L116: 3050
A117: YKK450S1-8 | B117: 250 | C117: 33.0 | D117: 739 | E117: 92.2 | F117: 0.79 | G117: 1.8 | H117: 0.8 | I117: 5.5 | J117: 16.0 | K117: 558 | L117: 4560
A118: YKK4501-8 | B118: 280 | C118: 36.9 | D118: 739 | E118: 92.4 | F118: 0.79 | G118: 1.8 | H118: 0.8 | I118: 5.5 | J118: 17.0 | K118: 622 | L118: 4640
A119: YKK4502-8 | B119: 315 | C119: 41.4 | D119: 739 | E119: 92.7 | F119: 0.79 | G119: 1.8 | H119: 0.8 | I119: 5.5 | J119: 18.0 | K119: 693 | L119: 4720
A120: YKK4503-8 | B120: 355 | C120: 46.6 | D120: 739 | E120: 92.8 | F120: 0.79 | G120: 1.8 | H120: 0.8 | I120: 5.5 | J120: 19.0 | K120: 772 | L120: 4800
A121: YKK4504-8 | B121: 400 | C121: 51.7 | D121: 739 | E121: 93.0 | F121: 0.80 | G121: 1.8 | H121: 0.8 | I121: 5.5 | J121: 20.0 | K121: 830 | L121: 4890
A122: YKK4505-8 | B122: 450 | C122: 58.1 | D122: 739 | E122: 93.1 | F122: 0.80 | G122: 1.8 | H122: 0.8 | I122: 5.5 | J122: 21.0 | K122: 880 | L122: 4980
A123: YKK500S1-8 | B123: 400 | C123: 51.7 | D123: 743 | E123: 93.0 | F123: 0.80 | G123: 1.8 | H123: 0.8 | I123: 5.5 | J123: 30.0 | K123: 853 | L123: 5110
A124: YKK5001-8 | B124: 450 | C124: 58.1 | D124: 743 | E124: 93.1 | F124: 0.80 | G124: 1.8 | H124: 0.8 | I124: 5.5 | J124: 34.0 | K124: 941 | L124: 5280
A125: YKK5002-8 | B125: 500 | C125: 64.3 | D125: 743 | E125: 93.6 | F125: 0.80 | G125: 1.8 | H125: 0.8 | I125: 5.5 | J125: 38.0 | K125: 1041 | L125: 5430
A126: YKK5003-8 | B126: 560 | C126: 71.8 | D126: 743 | E126: 93.8 | F126: 0.80 | G126: 1.8 | H126: 0.8 | I126: 5.5 | J126: 42.0 | K126: 1160 | L126: 5660
A127: YKK5004-8 | B127: 630 | C127: 78.7 | D127: 743 | E127: 93.9 | F127: 0.82 | G127: 1.8 | H127: 0.8 | I127: 5.5 | J127: 47.0 | K127: 1200 | L127: 5920
A128: YKK5005-8 | B128: 710 | C128: 88.6 | D128: 743 | E128: 94.0 | F128: 0.82 | G128: 1.8 | H128: 0.8 | I128: 5.5 | J128: 51.0 | K128: 1280 | L128: 6180
A129: YKK560S2-8 | B129: 630 | C129: 78.7 | D129: 745 | E129: 93.9 | F129: 0.82 | G129: 1.8 | H129: 0.7 | I129: 6.0 | J129: 79.0 | K129: 1221 | L129: 7500
A130: YKK560S1-8 | B130: 710 | C130: 88.6 | D130: 745 | E130: 94.0 | F130: 0.82 | G130: 1.8 | H130: 0.7 | I130: 6.0 | J130: 87.0 | K130: 1357 | L130: 7750
A131: YKK5601-8 | B131: 800 | C131: 99.7 | D131: 745 | E131: 94.2 | F131: 0.82 | G131: 1.8 | H131: 0.7 | I131: 6.0 | J131: 90.0 | K131: 1505 | L131: 8000
A132: YKK5602-8 | B132: 900 | C132: 109 | D132: 745 | E132: 94.3 | F132: 0.84 | G132: 1.8 | H132: 0.7 | I132: 6.0 | J132: 93.0 | K132: 1590 | L132: 8250
A133: YKK5603-8 | B133: 1000 | C133: 121 | D133: 745 | E133: 94.4 | F133: 0.84 | G133: 1.8 | H133: 0.7 | I133: 6.0 | J133: 96.0 | K133: 1680 | L133: 8500
A134: YKK6302-8 | B134: 900 | C134: 109 | D134: 745 | E134: 94.3 | F134: 0.84 | G134: 1.8 | H134: 0.7 | I134: 6.0 | J134: 129.0 | K134: 1650 | L134: 10400
A135: YKK6303-8 | B135: 1000 | C135: 121 | D135: 745 | E135: 94.4 | F135: 0.84 | G135: 1.8 | H135: 0.7 | I135: 6.0 | J135: 137.0 | K135: 1820 | L135: 10800
A136: YKK6304-8 | B136: 1120 | C136: 136 | D136: 745 | E136: 94.5 | F136: 0.84 | G136: 1.8 | H136: 0.7 | I136: 6.0 | J136: 151.0 | K136: 2001 | L136: 11200
A137: YKK6305-8 | B137: 1250 | C137: 151 | D137: 745 | E137: 94.7 | F137: 0.84 | G137: 1.8 | H137: 0.7 | I137: 6.0 | J137: 160.0 | K137: 2204 | L137: 11600
A138: YKK6306-8 | B138: 1400 | C138: 169 | D138: 745 | E138: 94.8 | F138: 0.84 | G138: 1.8 | H138: 0.7 | I138: 6.0 | J138: 171.0 | K138: 2300 | L138: 12000
A139: YKK6307-8 | B139: 1600 | C139: 193 | D139: 745 | E139: 94.9 | F139: 0.84 | G139: 1.8 | H139: 0.7 | I139: 6.0 | J139: 180.0 | K139: 2402 | L139: 12400
A140: YKK6308-8 | B140: 1800 | C140: 217 | D140: 745 | E140: 95.0 | F140: 0.84 | G140: 1.8 | H140: 0.7 | I140: 6.0 | J140: 188.0 | K140: 2500 | L140: 12800
A141: YKK4004-10 | B141: 185 | C141: 26.1 | D141: 593 | E141: 90.8 | F141: 0.75 | G141: 1.8 | H141: 0.8 | I141: 5.5 | J141: 14.0 | K141: 600 | L141: 2890
A142: YKK4005-10 | B142: 200 | C142: 28.2 | D142: 593 | E142: 91.1 | F142: 0.75 | G142: 1.8 | H142: 0.8 | I142: 5.5 | J142: 15.5 | K142: 645 | L142: 3040
A143: YKK450S2-10 | B143: 185 | C143: 26.1 | D143: 593 | E143: 90.8 | F143: 0.75 | G143: 1.8 | H143: 0.8 | I143: 5.5 | J143: 19.0 | K143: 698 | L143: 4580
A144: YKK450S1-10 | B144: 200 | C144: 28.2 | D144: 593 | E144: 91.1 | F144: 0.75 | G144: 1.8 | H144: 0.8 | I144: 5.5 | J144: 20.0 | K144: 775 | L144: 4670
A145: YKK4501-10 | B145: 220 | C145: 30.9 | D145: 593 | E145: 91.3 | F145: 0.75 | G145: 1.8 | H145: 0.8 | I145: 5.5 | J145: 22.0 | K145: 865 | L145: 4760
A146: YKK4502-10 | B146: 250 | C146: 35.1 | D146: 593 | E146: 91.5 | F146: 0.75 | G146: 1.8 | H146: 0.8 | I146: 5.5 | J146: 24.0 | K146: 902 | L146: 4860
A147: YKK4503-10 | B147: 280 | C147: 39.2 | D147: 593 | E147: 91.7 | F147: 0.75 | G147: 1.8 | H147: 0.8 | I147: 5.5 | J147: 26.0 | K147: 1052 | L147: 4960
A148: YKK4504-10 | B148: 315 | C148: 43.3 | D148: 593 | E148: 92.1 | F148: 0.76 | G148: 1.8 | H148: 0.8 | I148: 5.5 | J148: 28.0 | K148: 1100 | L148: 5050
A149: YKK4505-10 | B149: 355 | C149: 48.7 | D149: 593 | E149: 92.3 | F149: 0.76 | G149: 1.8 | H149: 0.8 | I149: 5.5 | J149: 30.0 | K149: 1160 | L149: 5160
A150: YKK500S2-10 | B150: 315 | C150: 43.3 | D150: 594 | E150: 92.1 | F150: 0.76 | G150: 1.8 | H150: 0.8 | I150: 5.5 | J150: 36.0 | K150: 1196 | L150: 5220
A151: YKK500S1-10 | B151: 355 | C151: 48.7 | D151: 594 | E151: 92.3 | F151: 0.76 | G151: 1.8 | H151: 0.8 | I151: 5.5 | J151: 38.0 | K151: 1330 | L151: 5375
A152: YKK5001-10 | B152: 400 | C152: 54.7 | D152: 594 | E152: 92.6 | F152: 0.76 | G152: 1.8 | H152: 0.8 | I152: 5.5 | J152: 42.0 | K152: 1471 | L152: 5535
A153: YKK5002-10 | B153: 450 | C153: 61.5 | D153: 594 | E153: 92.7 | F153: 0.76 | G153: 1.8 | H153: 0.8 | I153: 5.5 | J153: 45.0 | K153: 1627 | L153: 5760
A154: YKK5003-10 | B154: 500 | C154: 66.3 | D154: 594 | E154: 93.0 | F154: 0.78 | G154: 1.8 | H154: 0.8 | I154: 5.5 | J154: 48.0 | K154: 1720 | L154: 5980
A155: YKK5004-10 | B155: 560 | C155: 74.2 | D155: 594 | E155: 93.1 | F155: 0.78 | G155: 1.8 | H155: 0.8 | I155: 5.5 | J155: 51.0 | K155: 1830 | L155: 6205
A156: YKK5005-10 | B156: 630 | C156: 83.4 | D156: 594 | E156: 93.2 | F156: 0.78 | G156: 1.8 | H156: 0.8 | I156: 5.5 | J156: 54.0 | K156: 1950 | L156: 6450
A157: YKK560S3-10 | B157: 500 | C157: 66.3 | D157: 595 | E157: 93.0 | F157: 0.78 | G157: 1.8 | H157: 0.7 | I157: 6.0 | J157: 67.0 | K157: 1710 | L157: 7470
A158: YKK560S2-10 | B158: 560 | C158: 74.2 | D158: 595 | E158: 93.1 | F158: 0.78 | G158: 1.8 | H158: 0.7 | I158: 6.0 | J158: 74.0 | K158: 1902 | L158: 7690
A159: YKK560S1-10 | B159: 630 | C159: 83.4 | D159: 595 | E159: 93.2 | F159: 0.78 | G159: 1.8 | H159: 0.7 | I159: 6.0 | J159: 79.0 | K159: 2116 | L159: 7920
A160: YKK5601-10 | B160: 710 | C160: 93.8 | D160: 595 | E160: 93.4 | F160: 0.78 | G160: 1.8 | H160: 0.7 | I160: 6.0 | J160: 88.0 | K160: 2355 | L160: 8140
A161: YKK5602-10 | B161: 800 | C161: 103 | D161: 595 | E161: 93.7 | F161: 0.80 | G161: 1.8 | H161: 0.7 | I161: 6.0 | J161: 89.0 | K161: 2480 | L161: 8360
A162: YKK5603-10 | B162: 900 | C162: 115 | D162: 595 | E162: 93.8 | F162: 0.80 | G162: 1.8 | H162: 0.7 | I162: 6.0 | J162: 90.0 | K162: 2620 | L162: 8580
A163: YKK6302-10 | B163: 800 | C163: 103 | D163: 594 | E163: 93.7 | F163: 0.80 | G163: 1.8 | H163: 0.7 | I163: 6.0 | J163: 132 | K163: 2615 | L163: 10600
A164: YKK6303-10 | B164: 900 | C164: 115 | D164: 594 | E164: 93.8 | F164: 0.80 | G164: 1.8 | H164: 0.7 | I164: 6.0 | J164: 140 | K164: 2800 | L164: 11000
A165: YKK6304-10 | B165: 1000 | C165: =B165*100/1.732/E165/F165/6 -> 128 | D165: 594 | E165: 93.9 | F165: 0.80 | G165: 1.8 | H165: 0.7 | I165: 6.0 | J165: 152 | K165: 3170 | L165: 11400
A166: YKK6305-10 | B166: 1120 | C166: 143 | D166: 594 | E166: 94.1 | F166: 0.80 | G166: 1.8 | H166: 0.7 | I166: 6.0 | J166: 167 | K166: 3489 | L166: 11800
A167: YKK6306-10 | B167: 1250 | C167: 159 | D167: 594 | E167: 94.4 | F167: 0.80 | G167: 1.8 | H167: 0.7 | I167: 6.0 | J167: 175 | K167: 3800 | L167: 12200
A168: YKK6307-10 | B168: 1400 | C168: 178 | D168: 594 | E168: 94.5 | F168: 0.80 | G168: 1.8 | H168: 0.7 | I168: 6.0 | J168: 188.0 | K168: 4120 | L168: 12600
A169: YKK6308-10 | B169: 1600 | C169: 203 | D169: 594 | E169: 94.6 | F169: 0.80 | G169: 1.8 | H169: 0.7 | I169: 6.0 | J169: 199.0 | K169: 4450 | L169: 13050
A170: YKK4502-12 | B170: 185 | C170: 28.0 | D170: 494 | E170: 90.9 | F170: 0.70 | G170: 1.8 | H170: 0.8 | I170: 5.5 | J170: 24.0 | K170: 1487 | L170: 4720
A171: YKK4503-12 | B171: 200 | C171: 30.1 | D171: 494 | E171: 91.2 | F171: 0.70 | G171: 1.8 | H171: 0.8 | I171: 5.5 | J171: 26.0 | K171: 1206 | L171: 4800
A172: YKK4504-12 | B172: 220 | C172: 32.2 | D172: 494 | E172: 91.4 | F172: 0.72 | G172: 1.8 | H172: 0.8 | I172: 5.5 | J172: 28.0 | K172: 1320 | L172: 4900
A173: YKK4505-12 | B173: 250 | C173: 36.4 | D173: 494 | E173: 91.7 | F173: 0.72 | G173: 1.8 | H173: 0.8 | I173: 5.5 | J173: 30.0 | K173: 1440 | L173: 5000
A174: YKK500S2-12 | B174: 220 | C174: 32.2 | D174: 494 | E174: 91.4 | F174: 0.72 | G174: 1.8 | H174: 0.8 | I174: 5.5 | J174: 40.0 | K174: 1347 | L174: 5250
A175: YKK500S1-12 | B175: 250 | C175: 36.4 | D175: 494 | E175: 91.7 | F175: 0.72 | G175: 1.8 | H175: 0.8 | I175: 5.5 | J175: 42.0 | K175: 1499 | L175: 5340
A176: YKK5001-12 | B176: 280 | C176: 40.7 | D176: 494 | E176: 91.9 | F176: 0.72 | G176: 1.8 | H176: 0.8 | I176: 5.5 | J176: 43.0 | K176: 1672 | L176: 5410
A177: YKK5002-12 | B177: 315 | C177: 45.7 | D177: 494 | E177: 92.1 | F177: 0.72 | G177: 1.8 | H177: 0.8 | I177: 5.5 | J177: 47.0 | K177: 1865 | L177: 5600
A178: YKK5003-12 | B178: 355 | C178: 50.0 | D178: 494 | E178: 92.3 | F178: 0.74 | G178: 1.8 | H178: 0.8 | I178: 5.5 | J178: 49.0 | K178: 1920 | L178: 5780
A179: YKK5004-12 | B179: 400 | C179: 56.2 | D179: 494 | E179: 92.6 | F179: 0.74 | G179: 1.8 | H179: 0.8 | I179: 5.5 | J179: 52.0 | K179: 2000 | L179: 5920
A180: YKK5005-12 | B180: 450 | C180: 63.1 | D180: 494 | E180: 92.7 | F180: 0.74 | G180: 1.8 | H180: 0.8 | I180: 5.5 | J180: 55.0 | K180: 2120 | L180: 6080
A181: YKK560S3-12 | B181: 355 | C181: 50.0 | D181: 496 | E181: 92.3 | F181: 0.74 | G181: 1.8 | H181: 0.7 | I181: 6.0 | J181: 87.0 | K181: 1967 | L181: 7440
A182: YKK560S2-12 | B182: 400 | C182: 56.2 | D182: 496 | E182: 92.6 | F182: 0.74 | G182: 1.8 | H182: 0.7 | I182: 6.0 | J182: 96.0 | K182: 2190 | L182: 7650
A183: YKK560S1-12 | B183: 450 | C183: 63.1 | D183: 496 | E183: 92.7 | F183: 0.74 | G183: 1.8 | H183: 0.7 | I183: 6.0 | J183: 103 | K183: 2411 | L183: 7860
A184: YKK5601-12 | B184: 500 | C184: 69.8 | D184: 496 | E184: 93.1 | F184: 0.74 | G184: 1.8 | H184: 0.7 | I184: 6.0 | J184: 114 | K184: 2673 | L184: 8070
A185: YKK5602-12 | B185: 560 | C185: 76.1 | D185: 496 | E185: 93.2 | F185: 0.76 | G185: 1.8 | H185: 0.7 | I185: 6.0 | J185: 125 | K185: 2810 | L185: 8280
A186: YKK5603-12 | B186: 630 | C186: 85.5 | D186: 496 | E186: 93.3 | F186: 0.76 | G186: 1.8 | H186: 0.7 | I186: 6.0 | J186: 128 | K186: 3050 | L186: 8490
A187: YKK6302-12 | B187: 560 | C187: 76.1 | D187: 496 | E187: 93.2 | F187: 0.76 | G187: 1.8 | H187: 0.7 | I187: 6.0 | J187: 179 | K187: 2974 | L187: 10600
A188: YKK6303-12 | B188: 630 | C188: 85.5 | D188: 496 | E188: 93.3 | F188: 0.76 | G188: 1.8 | H188: 0.7 | I188: 6.0 | J188: 191 | K188: 3312 | L188: 11000
A189: YKK6304-12 | B189: 710 | C189: 96.2 | D189: 496 | E189: 93.4 | F189: 0.76 | G189: 1.8 | H189: 0.7 | I189: 6.0 | J189: 208 | K189: 3688 | L189: 11400
A190: YKK6305-12 | B190: 800 | C190: 108 | D190: 496 | E190: 93.7 | F190: 0.76 | G190: 1.8 | H190: 0.7 | I190: 6.0 | J190: 272 | K190: 4098 | L190: 11800
A191: YKK6306-12 | B191: 900 | C191: 121 | D191: 496 | E191: 93.8 | F191: 0.76 | G191: 1.8 | H191: 0.7 | I191: 6.0 | J191: 340 | K191: 4300 | L191: 12200
A192: YKK6307-12 | B192: 1000 | C192: 135 | D192: 496 | E192: 93.9 | F192: 0.76 | G192: 1.8 | H192: 0.7 | I192: 6.0 | J192: 370 | K192: 4600 | L192: 12600
A193: YKK6308-12 | B193: 1120 | C193: =B193*100/1.732/E193/F193/6 -> 151 | D193: 496 | E193: 94.0 | F193: 0.76 | G193: 1.8 | H193: 0.7 | I193: 6.0 | J193: 410 | K193: 4900 | L193: 13000
A195: 0

Sheet YKK、YLKK 10KV
A1: YKK、YLKK系列（10kV）高压三相异步电动机技术数据
A2: 型号 | B2: 额定功率（kW） | C2: 定子电流（A） | D2: 额定转速（r/min） | E2: 效率（%） | F2: 功率因数（cosψ） | G2: 最大转矩额定转矩 | H2: 堵转转矩额定转矩 | I2: 堵转电流额定电流 | J2: 电动机转动惯量 | L2: 概量（kg)
J3: 电机 Jm （kg·m2） | K3: 允许负载 J (kg·m2）
A4: YKK4001-2 | B4: 220 | C4: =B4*100/1.732/10/E4/F4 -> 16.3 | D4: 2972 | E4: 91.6 | F4: 0.85 | G4: 1.8 | H4: 0.6 | I4: 7.0 | J4: 4.5 | K4: 28.0 | L4: 2950
A5: YKK4002-2 | B5: 250 | C5: =B5*100/1.732/10/E5/F5 -> 18.5 | D5: 2972 | E5: 91.8 | F5: 0.85 | G5: 1.8 | H5: 0.6 | I5: 7.0 | J5: 4.6 | K5: 28.2 | L5: 3000
A6: YKK4003-2 | B6: 280 | C6: 20.7 | D6: 2972 | E6: 92.1 | F6: 0.85 | G6: 1.8 | H6: 0.6 | I6: 7.0 | J6: 4.7 | K6: 28.5 | L6: 3050
A7: YKK4004-2 | B7: 315 | C7: 23.2 | D7: 2972 | E7: 92.4 | F7: 0.85 | G7: 1.8 | H7: 0.6 | I7: 7.0 | J7: 4.8 | K7: 28.6 | L7: 3100
A8: YKK4005-2 | B8: 355 | C8: 25.7 | D8: 2972 | E8: 92.8 | F8: 0.86 | G8: 1.8 | H8: 0.6 | I8: 7.0 | J8: 4.9 | K8: 28.7 | L8: 3150
A9: YKK4006-2 | B9: 400 | C9: 28.8 | D9: 2972 | E9: 93.1 | F9: 0.86 | G9: 1.8 | H9: 0.6 | I9: 7.0 | J9: 5.0 | K9: 28.9 | L9: 3200
A10: YKK450S6-2 | B10: 220 | C10: 16.3 | D10: 2972 | E10: 91.6 | F10: 0.85 | G10: 1.8 | H10: 0.6 | I10: 7.0 | J10: 5.1 | K10: 30.0 | L10: 3000
A11: YKK450S5-2 | B11: 250 | C11: 18.5 | D11: 2972 | E11: 91.8 | F11: 0.85 | G11: 1.8 | H11: 0.6 | I11: 7.0 | J11: 5.6 | K11: 31.3 | L11: 3060
A12: YKK450S4-2 | B12: 280 | C12: 20.7 | D12: 2973 | E12: 92.1 | F12: 0.85 | G12: 1.8 | H12: 0.6 | I12: 7.0 | J12: 6.1 | K12: 31.8 | L12: 3210
A13: YKK450S3-2 | B13: 315 | C13: 23.2 | D13: 2973 | E13: 92.4 | F13: 0.85 | G13: 1.8 | H13: 0.6 | I13: 7.0 | J13: 6.6 | K13: 32.5 | L13: 3300
A14: YKK450S2-2 | B14: 355 | C14: 25.7 | D14: 2975 | E14: 92.8 | F14: 0.86 | G14: 1.8 | H14: 0.6 | I14: 7.0 | J14: 7.2 | K14: 34.3 | L14: 3400
A15: YKK450S1-2 | B15: 400 | C15: 28.8 | D15: 2975 | E15: 93.1 | F15: 0.86 | G15: 1.8 | H15: 0.6 | I15: 7.0 | J15: 8.2 | K15: 35.2 | L15: 3480
A16: YKK4501-2 | B16: 450 | C16: 32.4 | D16: 2976 | E16: 93.3 | F16: 0.86 | G16: 1.8 | H16: 0.6 | I16: 7.0 | J16: 8.7 | K16: 38.0 | L16: 3580
A17: YKK4502-2 | B17: 500 | C17: 35.9 | D17: 2976 | E17: 93.4 | F17: 0.86 | G17: 1.8 | H17: 0.6 | I17: 7.0 | J17: 9.5 | K17: 39.0 | L17: 3650
A18: YKK4503-2 | B18: 560 | C18: 40.2 | D18: 2976 | E18: 93.6 | F18: 0.86 | G18: 1.8 | H18: 0.6 | I18: 7.0 | J18: 10.4 | K18: 40.2 | L18: 3920
A19: YKK4504-2 | B19: 630 | C19: 44.6 | D19: 2976 | E19: 93.7 | F19: 0.87 | G19: 1.8 | H19: 0.6 | I19: 7.0 | J19: 11.4 | K19: 43.0 | L19: 4120
A20: YKK4505-2 | B20: 710 | C20: 50.2 | D20: 2976 | E20: 93.8 | F20: 0.87 | G20: 1.8 | H20: 0.6 | I20: 7.0 | J20: 12.2 | K20: 46.5 | L20: 4270
A21: YKK500S2-2 | B21: 500 | C21: 35.9 | D21: 2975 | E21: 93.4 | F21: 0.86 | G21: 1.8 | H21: 0.6 | I21: 7.0 | J21: 14.7 | K21: 55.4 | L21: 4290
A22: YKK500S1-2 | B22: 560 | C22: 40.2 | D22: 2975 | E22: 93.6 | F22: 0.86 | G22: 1.8 | H22: 0.6 | I22: 7.0 | J22: 15.7 | K22: 59.1 | L22: 4380
A23: YKK5001-2 | B23: 630 | C23: 44.6 | D23: 2978 | E23: 93.7 | F23: 0.87 | G23: 1.8 | H23: 0.6 | I23: 7.0 | J23: 17.7 | K23: 63.2 | L23: 4500
A24: YKK5002-2 | B24: 710 | C24: 50.2 | D24: 2978 | E24: 93.8 | F24: 0.87 | G24: 1.8 | H24: 0.6 | I24: 7.0 | J24: 18.7 | K24: 68.8 | L24: 4600
A25: YKK5003-2 | B25: 800 | C25: 56.5 | D25: 2978 | E25: 94.0 | F25: 0.87 | G25: 1.8 | H25: 0.6 | I25: 7.0 | J25: 19.7 | K25: 75.5 | L25: 4780
A26: YKK5004-2 | B26: 900 | C26: 63.5 | D26: 2978 | E26: 94.1 | F26: 0.87 | G26: 1.8 | H26: 0.6 | I26: 7.0 | J26: 20.8 | K26: 77.5 | L26: 4960
A27: YKK5005-2 | B27: 1000 | C27: 70.5 | D27: 2978 | E27: 94.2 | F27: 0.87 | G27: 1.8 | H27: 0.6 | I27: 7.0 | J27: 21.7 | K27: 80.0 | L27: 5170
A28: YKK5006-2 | B28: 1120 | C28: 78.7 | D28: 2978 | E28: 94.4 | F28: 0.87 | G28: 1.8 | H28: 0.6 | I28: 7.0 | J28: 22.8 | K28: 84.0 | L28: 5350
A29: YKK560S2-2 | B29: 900 | C29: 63.5 | D29: 2978 | E29: 94.1 | F29: 0.87 | G29: 1.8 | H29: 0.6 | I29: 7.0 | J29: 31.8 | K29: 85.5 | L29: 7750
A30: YKK560S1-2 | B30: 1000 | C30: 70.5 | D30: 2979 | E30: 94.2 | F30: 0.87 | G30: 1.8 | H30: 0.6 | I30: 7.0 | J30: 35.7 | K30: 90.0 | L30: 8000
A31: YKK5601-2 | B31: 1120 | C31: 78.7 | D31: 2980 | E31: 94.4 | F31: 0.87 | G31: 1.8 | H31: 0.6 | I31: 7.0 | J31: 42.7 | K31: 97.0 | L31: 8250
A32: YKK5602-2 | B32: 1250 | C32: 87.7 | D32: 2980 | E32: 94.6 | F32: 0.87 | G32: 1.8 | H32: 0.6 | I32: 7.0 | J32: 44.0 | K32: 97.5 | L32: 8460
A33: YKK5603-2 | B33: 1400 | C33: 98.0 | D33: 2980 | E33: 94.8 | F33: 0.87 | G33: 1.8 | H33: 0.6 | I33: 7.0 | J33: 45.5 | K33: 98.0 | L33: 8700
A34: YKK5604-2 | B34: 1600 | C34: 111 | D34: 2980 | E34: 94.9 | F34: 0.88 | G34: 1.8 | H34: 0.6 | I34: 7.0 | J34: 47.8 | K34: 99.0 | L34: 8940
A35: YKK5605-2 | B35: 1800 | C35: 124 | D35: 2980 | E35: 95.0 | F35: 0.88 | G35: 1.8 | H35: 0.6 | I35: 7.0 | J35: 48.9 | K35: 99.5 | L35: 9190
A36: YKK630S3-2 | B36: 1250 | C36: 87.7 | D36: 2980 | E36: 94.6 | F36: 0.87 | G36: 1.8 | H36: 0.6 | I36: 7.0 | J36: 42.7 | K36: 98.0 | L36: 9300
A37: YKK630S2-2 | B37: 1400 | C37: 98.0 | D37: 2980 | E37: 94.8 | F37: 0.87 | G37: 1.8 | H37: 0.6 | I37: 7.0 | J37: 46.0 | K37: 99.0 | L37: 9700
A38: YKK630S1-2 | B38: 1600 | C38: 111 | D38: 2981 | E38: 94.9 | F38: 0.88 | G38: 1.8 | H38: 0.6 | I38: 7.0 | J38: 53.0 | K38: 100 | L38: 10100
A39: YKK6301-2 | B39: 2000 | C39: 138 | D39: 2981 | E39: 95.2 | F39: 0.88 | G39: 1.8 | H39: 0.6 | I39: 7.0 | J39: 56.2 | K39: 101 | L39: 10500
A40: YKK6302-2 | B40: 2100 | C40: 145 | D40: 2981 | E40: 95.2 | F40: 0.88 | G40: 1.8 | H40: 0.6 | I40: 7.0 | J40: 59.8 | K40: 103 | L40: 10850
A41: YKK6303-2 | B41: 2240 | C41: 154 | D41: 2981 | E41: 95.4 | F41: 0.88 | G41: 1.8 | H41: 0.6 | I41: 7.0 | J41: 62.8 | K41: 104 | L41: 11200
A42: YKK6304-2 | B42: 2350 | C42: 162 | D42: 2981 | E42: 95.4 | F42: 0.88 | G42: 1.8 | H42: 0.6 | I42: 7.0 | J42: 66.0 | K42: 105 | L42: 11600
A43: YKK6305-2 | B43: 2500 | C43: 172 | D43: 2981 | E43: 95.4 | F43: 0.88 | G43: 1.8 | H43: 0.6 | I43: 7.0 | J43: 69.1 | K43: 106 | L43: 12000
A44: YKK4001-4 | B44: 220 | C44: 16.7 | D44: 1490 | E44: 91.4 | F44: 0.83 | G44: 1.8 | H44: 0.7 | I44: 7.0 | J44: 6.0 | K44: 26.4 | L44: 3010
A45: YKK4002-4 | B45: 250 | C45: 19.0 | D45: 1490 | E45: 91.6 | F45: 0.83 | G45: 1.8 | H45: 0.7 | I45: 7.0 | J45: 7.0 | K45: 33.6 | L45: 3050
A46: YKK4003-4 | B46: 280 | C46: 21.2 | D46: 1490 | E46: 91.8 | F46: 0.83 | G46: 1.8 | H46: 0.7 | I46: 7.0 | J46: 8.0 | K46: 41.6 | L46: 3090
A47: YKK4004-4 | B47: 315 | C47: 23.8 | D47: 1490 | E47: 92.1 | F47: 0.83 | G47: 1.8 | H47: 0.7 | I47: 7.0 | J47: 9.0 | K47: 51.3 | L47: 3140
A48: YKK4005-4 | B48: 355 | C48: 25.8 | D48: 1490 | E48: 92.3 | F48: 0.86 | G48: 1.8 | H48: 0.7 | I48: 7.0 | J48: 10.0 | K48: 60.0 | L48: 3180
A49: YKK4006-4 | B49: 400 | C49: 29.0 | D49: 1490 | E49: 92.5 | F49: 0.86 | G49: 1.8 | H49: 0.7 | I49: 7.0 | J49: 11.0 | K49: 70.4 | L49: 3210
A50: YKK450S6-4 | B50: 220 | C50: 16.7 | D50: 1492 | E50: 91.4 | F50: 0.83 | G50: 1.8 | H50: 0.7 | I50: 7.0 | J50: 11.4 | K50: 78.0 | L50: 3200
A51: YKK450S5-4 | B51: 250 | C51: 19.0 | D51: 1492 | E51: 91.6 | F51: 0.83 | G51: 1.8 | H51: 0.7 | I51: 7.0 | J51: 12.6 | K51: 87.0 | L51: 3250
A52: YKK450S4-4 | B52: 280 | C52: 21.2 | D52: 1492 | E52: 91.8 | F52: 0.83 | G52: 1.8 | H52: 0.7 | I52: 7.0 | J52: 13.1 | K52: 97.0 | L52: 3350
A53: YKK450S3-4 | B53: 315 | C53: 23.8 | D53: 1492 | E53: 92.1 | F53: 0.83 | G53: 1.8 | H53: 0.7 | I53: 7.0 | J53: 13.5 | K53: 107 | L53: 3500
A54: YKK450S2-4 | B54: 355 | C54: 25.8 | D54: 1492 | E54: 92.3 | F54: 0.86 | G54: 1.8 | H54: 0.7 | I54: 7.0 | J54: 14.0 | K54: 119 | L54: 3600
A55: YKK450S1-4 | B55: 400 | C55: 29.0 | D55: 1492 | E55: 92.5 | F55: 0.86 | G55: 1.8 | H55: 0.7 | I55: 7.0 | J55: 14.4 | K55: 132 | L55: 3750
A56: YKK4501-4 | B56: 450 | C56: 32.5 | D56: 1492 | E56: 92.9 | F56: 0.86 | G56: 1.8 | H56: 0.7 | I56: 7.0 | J56: 15.3 | K56: 147 | L56: 3850
A57: YKK4502-4 | B57: 500 | C57: 36.1 | D57: 1492 | E57: 93.0 | F57: 0.86 | G57: 1.8 | H57: 0.7 | I57: 7.0 | J57: 15.8 | K57: 162 | L57: 3950
A58: YKK4503-4 | B58: 560 | C58: 40.3 | D58: 1492 | E58: 93.3 | F58: 0.86 | G58: 1.8 | H58: 0.7 | I58: 7.0 | J58: 16.5 | K58: 175 | L58: 4100
A59: YKK4504-4 | B59: 630 | C59: 45.2 | D59: 1492 | E59: 93.5 | F59: 0.86 | G59: 1.8 | H59: 0.7 | I59: 7.0 | J59: 17.2 | K59: 190 | L59: 4160
A60: YKK4505-4 | B60: 710 | C60: 50.7 | D60: 1492 | E60: 94.1 | F60: 0.86 | G60: 1.8 | H60: 0.7 | I60: 7.0 | J60: 18.0 | K60: 200 | L60: 4250
A61: YKK500S2-4 | B61: 500 | C61: 36.1 | D61: 1489 | E61: 93.0 | F61: 0.86 | G61: 1.8 | H61: 0.7 | I61: 7.0 | J61: 25.0 | K61: 165 | L61: 4580
A62: YKK500S1-4 | B62: 560 | C62: 40.3 | D62: 1489 | E62: 93.3 | F62: 0.86 | G62: 1.8 | H62: 0.7 | I62: 7.0 | J62: 26.0 | K62: 182 | L62: 4670
A63: YKK5001-4 | B63: 630 | C63: 45.2 | D63: 1489 | E63: 93.5 | F63: 0.86 | G63: 1.8 | H63: 0.7 | I63: 7.0 | J63: 28.0 | K63: 201 | L63: 4800
A64: YKK5002-4 | B64: 710 | C64: 50.7 | D64: 1489 | E64: 94.1 | F64: 0.86 | G64: 1.8 | H64: 0.7 | I64: 7.0 | J64: 30.0 | K64: 220 | L64: 5080
A65: YKK5003-4 | B65: 800 | C65: 56.3 | D65: 1489 | E65: 94.3 | F65: 0.87 | G65: 1.8 | H65: 0.7 | I65: 7.0 | J65: 32.0 | K65: 242 | L65: 5350
A66: YKK5004-4 | B66: 900 | C66: 63.3 | D66: 1489 | E66: 94.4 | F66: 0.87 | G66: 1.8 | H66: 0.7 | I66: 7.0 | J66: 34.0 | K66: 250 | L66: 5530
A67: YKK5005-4 | B67: 1000 | C67: 70.2 | D67: 1489 | E67: 94.5 | F67: 0.87 | G67: 1.8 | H67: 0.7 | I67: 7.0 | J67: 36.0 | K67: 262 | L67: 5720
A68: YKK5006-4 | B68: 1120 | C68: 78.6 | D68: 1489 | E68: 94.6 | F68: 0.87 | G68: 1.8 | H68: 0.7 | I68: 7.0 | J68: 38.0 | K68: 279 | L68: 5920
A69: YKK560S2-4 | B69: 900 | C69: =B69*100/1.732/10/E69/F69 -> 63.3 | D69: 1493 | E69: 94.4 | F69: 0.87 | G69: 1.8 | H69: 0.7 | I69: 7.0 | J69: 44.0 | K69: 270 | L69: 7800
A70: YKK560S1-4 | B70: 1000 | C70: 70.2 | D70: 1493 | E70: 94.5 | F70: 0.87 | G70: 1.8 | H70: 0.7 | I70: 7.0 | J70: 47.0 | K70: 292 | L70: 8050
A71: YKK5601-4 | B71: 1120 | C71: 78.6 | D71: 1493 | E71: 94.6 | F71: 0.87 | G71: 1.8 | H71: 0.7 | I71: 7.0 | J71: 50.0 | K71: 320 | L71: 8300
A72: YKK5602-4 | B72: 1250 | C72: 86.6 | D72: 1493 | E72: 94.7 | F72: 0.88 | G72: 1.8 | H72: 0.7 | I72: 7.0 | J72: 53.0 | K72: 340 | L72: 8550
A73: YKK5603-4 | B73: 1400 | C73: 96.7 | D73: 1493 | E73: 95.0 | F73: 0.88 | G73: 1.8 | H73: 0.7 | I73: 7.0 | J73: 56.0 | K73: 360 | L73: 8800
A74: YKK5604-4 | B74: 1600 | C74: 110 | D74: 1493 | E74: 95.1 | F74: 0.88 | G74: 1.8 | H74: 0.7 | I74: 7.0 | J74: 59.0 | K74: 375 | L74: 9050
A75: YKK5605-4 | B75: 1800 | C75: 124 | D75: 1493 | E75: 95.2 | F75: 0.88 | G75: 1.8 | H75: 0.7 | I75: 7.0 | J75: 62.0 | K75: 388 | L75: 9300
A76: YKK630S3-4 | B76: 1250 | C76: 86.6 | D76: 1492 | E76: 94.7 | F76: 0.88 | G76: 1.8 | H76: 0.6 | I76: 7.0 | J76: 90.0 | K76: 350 | L76: 9900
A77: YKK630S2-4 | B77: 1400 | C77: 96.7 | D77: 1492 | E77: 95.0 | F77: 0.88 | G77: 1.8 | H77: 0.6 | I77: 7.0 | J77: 95.0 | K77: 382 | L77: 10300
A78: YKK630S1-4 | B78: 1600 | C78: 110 | D78: 1492 | E78: 95.1 | F78: 0.88 | G78: 1.8 | H78: 0.6 | I78: 7.0 | J78: 101 | K78: 423 | L78: 10500
A79: YKK6301-4 | B79: 2000 | C79: 138 | D79: 1492 | E79: 95.4 | F79: 0.88 | G79: 1.8 | H79: 0.6 | I79: 7.0 | J79: 105.0 | K79: 452 | L79: 10900
A80: YKK6302-4 | B80: 2100 | C80: 144 | D80: 1492 | E80: 95.4 | F80: 0.88 | G80: 1.8 | H80: 0.6 | I80: 7.0 | J80: 109 | K80: 488 | L80: 11200
A81: YKK6303-4 | B81: 2240 | C81: 154 | D81: 1492 | E81: 95.5 | F81: 0.88 | G81: 1.8 | H81: 0.6 | I81: 7.0 | J81: 114 | K81: 520 | L81: 11500
A82: YKK6304-4 | B82: 2350 | C82: 161 | D82: 1492 | E82: 95.5 | F82: 0.88 | G82: 1.8 | H82: 0.6 | I82: 7.0 | J82: 119 | K82: 552 | L82: 11900
A83: YKK6305-4 | B83: 2500 | C83: 172 | D83: 1492 | E83: 95.5 | F83: 0.88 | G83: 1.8 | H83: 0.6 | I83: 7.0 | J83: 123 | K83: 585 | L83: 12300
A84: YKK4004-6 | B84: 220 | C84: 17.4 | D84: 991 | E84: 91.2 | F84: 0.80 | G84: 1.8 | H84: 0.7 | I84: 6.0 | J84: 14.0 | K84: 200 | L84: 3280
A85: YKK4005-6 | B85: 250 | C85: 19.7 | D85: 991 | E85: 91.4 | F85: 0.80 | G85: 1.8 | H85: 0.7 | I85: 6.0 | J85: 14.5 | K85: 220 | L85: 3360
A86: YKK4006-6 | B86: 280 | C86: 22.0 | D86: 991 | E86: 91.7 | F86: 0.80 | G86: 1.8 | H86: 0.7 | I86: 6.0 | J86: 15.0 | K86: 250 | L86: 3440
A87: YKK450S3-6 | B87: 220 | C87: 17.4 | D87: 992 | E87: 91.2 | F87: 0.80 | G87: 1.8 | H87: 0.7 | I87: 6.0 | J87: 15.5 | K87: 210 | L87: 3540
A88: YKK450S2-6 | B88: 250 | C88: 19.7 | D88: 992 | E88: 91.4 | F88: 0.80 | G88: 1.8 | H88: 0.7 | I88: 6.0 | J88: 16.3 | K88: 235 | L88: 3600
A89: YKK450S1-6 | B89: 280 | C89: 22.0 | D89: 992 | E89: 91.7 | F89: 0.80 | G89: 1.8 | H89: 0.7 | I89: 6.0 | J89: 17.4 | K89: 260 | L89: 3650
A90: YKK4501-6 | B90: 315 | C90: 24.1 | D90: 992 | E90: 92.0 | F90: 0.82 | G90: 1.8 | H90: 0.7 | I90: 6.0 | J90: 18.4 | K90: 290 | L90: 3750
A91: YKK4502-6 | B91: 355 | C91: 26.8 | D91: 992 | E91: 92.2 | F91: 0.83 | G91: 1.8 | H91: 0.7 | I91: 6.0 | J91: 19.5 | K91: 305 | L91: 3820
A92: YKK4503-6 | B92: 400 | C92: 30.1 | D92: 992 | E92: 92.4 | F92: 0.83 | G92: 1.8 | H92: 0.7 | I92: 6.0 | J92: 20.5 | K92: 318 | L92: 4360
A93: YKK4504-6 | B93: 450 | C93: 33.8 | D93: 992 | E93: 92.6 | F93: 0.83 | G93: 1.8 | H93: 0.7 | I93: 6.0 | J93: 21.6 | K93: 323 | L93: 4400
A94: YKK4505-6 | B94: 500 | C94: 37.4 | D94: 992 | E94: 93.0 | F94: 0.83 | G94: 1.8 | H94: 0.7 | I94: 6.0 | J94: 22.7 | K94: 338 | L94: 4500
A95: YKK500S3-6 | B95: 355 | C95: 26.8 | D95: 994 | E95: 92.2 | F95: 0.83 | G95: 1.8 | H95: 0.7 | I95: 6.0 | J95: 27.0 | K95: 326 | L95: 4400
A96: YKK500S2-6 | B96: 400 | C96: 30.1 | D96: 994 | E96: 92.4 | F96: 0.83 | G96: 1.8 | H96: 0.7 | I96: 6.0 | J96: 29.0 | K96: 362 | L96: 4470
A97: YKK500S1-6 | B97: 450 | C97: 33.8 | D97: 994 | E97: 92.6 | F97: 0.83 | G97: 1.8 | H97: 0.7 | I97: 6.0 | J97: 31.0 | K97: 400 | L97: 4600
A98: YKK5001-6 | B98: 500 | C98: 37.4 | D98: 994 | E98: 93.0 | F98: 0.83 | G98: 1.8 | H98: 0.7 | I98: 6.0 | J98: 33.0 | K98: 446 | L98: 4740
A99: YKK5002-6 | B99: 560 | C99: 41.3 | D99: 994 | E99: 93.3 | F99: 0.84 | G99: 1.8 | H99: 0.7 | I99: 6.0 | J99: 35.0 | K99: 485 | L99: 5055
A100: YKK5003-6 | B100: 630 | C100: 46.3 | D100: 994 | E100: 93.6 | F100: 0.84 | G100: 1.8 | H100: 0.7 | I100: 6.0 | J100: 37.0 | K100: 510 | L100: 5285
A101: YKK5004-6 | B101: 710 | C101: 52.0 | D101: 994 | E101: 93.8 | F101: 0.84 | G101: 1.8 | H101: 0.7 | I101: 6.0 | J101: 39.0 | K101: 529 | L101: 5665
A102: YKK5005-6 | B102: 800 | C102: 58.5 | D102: 994 | E102: 94.0 | F102: 0.84 | G102: 1.8 | H102: 0.7 | I102: 6.0 | J102: 41.0 | K102: 538 | L102: 5900
A103: YKK5006-6 | B103: 900 | C103: 64.9 | D103: 994 | E103: 94.2 | F103: 0.85 | G103: 1.8 | H103: 0.7 | I103: 6.0 | J103: 43.0 | K103: 550 | L103: 6250
A104: YKK560S3-6 | B104: 630 | C104: 46.3 | D104: 992 | E104: 93.6 | F104: 0.84 | G104: 1.8 | H104: 0.7 | I104: 6.0 | J104: 50.0 | K104: 540 | L104: 6320
A105: YKK560S2-6 | B105: 710 | C105: 52.0 | D105: 992 | E105: 93.8 | F105: 0.84 | G105: 1.8 | H105: 0.7 | I105: 6.0 | J105: 60.0 | K105: 599 | L105: 6440
A106: YKK560S1-6 | B106: 800 | C106: 58.5 | D106: 992 | E106: 94.0 | F106: 0.84 | G106: 1.8 | H106: 0.7 | I106: 6.0 | J106: 63.0 | K106: 665 | L106: 6560
A107: YKK5601-6 | B107: 900 | C107: 64.9 | D107: 992 | E107: 94.2 | F107: 0.85 | G107: 1.8 | H107: 0.7 | I107: 6.0 | J107: 67.0 | K107: 736 | L107: 6780
A108: YKK5602-6 | B108: 1000 | C108: 72.0 | D108: 992 | E108: 94.4 | F108: 0.85 | G108: 1.8 | H108: 0.7 | I108: 6.0 | J108: 70.0 | K108: 760 | L108: 7000
A109: YKK5603-6 | B109: 1120 | C109: 80.4 | D109: 992 | E109: 94.6 | F109: 0.85 | G109: 1.8 | H109: 0.7 | I109: 6.0 | J109: 72.0 | K109: 780 | L109: 7220
A110: YKK5604-6 | B110: 1250 | C110: 88.6 | D110: 992 | E110: 94.7 | F110: 0.86 | G110: 1.8 | H110: 0.7 | I110: 6.0 | J110: 75.0 | K110: 800 | L110: 7430
A111: YKK5605-6 | B111: 1400 | C111: 98.8 | D111: 992 | E111: 95.1 | F111: 0.86 | G111: 1.8 | H111: 0.7 | I111: 6.0 | J111: 78.0 | K111: 825 | L111: 7650
A112: YKK630S3-6 | B112: 1000 | C112: 72.0 | D112: 993 | E112: 94.4 | F112: 0.85 | G112: 1.8 | H112: 0.6 | I112: 6.0 | J112: 121 | K112: 805 | L112: 10750
A113: YKK630S2-6 | B113: 1120 | C113: 80.4 | D113: 993 | E113: 94.6 | F113: 0.85 | G113: 1.8 | H113: 0.6 | I113: 6.0 | J113: 128 | K113: 886 | L113: 11150
A114: YKK630S1-6 | B114: 1250 | C114: 88.6 | D114: 993 | E114: 94.7 | F114: 0.86 | G114: 1.8 | H114: 0.6 | I114: 6.0 | J114: 135 | K114: 970 | L114: 11500
A115: YKK6301-6 | B115: 1600 | C115: 113 | D115: 993 | E115: 95.2 | F115: 0.86 | G115: 1.8 | H115: 0.6 | I115: 6.0 | J115: 140 | K115: 1050 | L115: 11900
A116: YKK6302-6 | B116: 1800 | C116: 127 | D116: 993 | E116: 95.3 | F116: 0.86 | G116: 1.8 | H116: 0.6 | I116: 6.0 | J116: 147 | K116: 1120 | L116: 12300
A117: YKK6303-6 | B117: 2000 | C117: 141 | D117: 993 | E117: 95.4 | F117: 0.86 | G117: 1.8 | H117: 0.6 | I117: 6.0 | J117: 155 | K117: 1200 | L117: 12700
A118: YKK6304-6 | B118: 2100 | C118: 148 | D118: 993 | E118: 95.4 | F118: 0.86 | G118: 1.8 | H118: 0.6 | I118: 6.0 | J118: 162 | K118: 1280 | L118: 13100
A119: YKK6305-6 | B119: 2240 | C119: 158 | D119: 993 | E119: 95.4 | F119: 0.86 | G119: 1.8 | H119: 0.6 | I119: 6.0 | J119: 169 | K119: 1360 | L119: 13500
A120: YKK4502-8 | B120: 220 | C120: 18.6 | D120: 745 | E120: 91.1 | F120: 0.75 | G120: 1.8 | H120: 0.7 | I120: 6.0 | J120: 24 | K120: 380 | L120: 3300
A121: YKK4503-8 | B121: 250 | C121: 21.1 | D121: 745 | E121: 91.3 | F121: 0.75 | G121: 1.8 | H121: 0.7 | I121: 6.0 | J121: 25 | K121: 390 | L121: 3400
A122: YKK4504-8 | B122: 280 | C122: 23.2 | D122: 745 | E122: 91.6 | F122: 0.76 | G122: 1.8 | H122: 0.7 | I122: 6.0 | J122: 26 | K122: 405 | L122: 3500
A123: YKK4505-8 | B123: 315 | C123: 25.7 | D123: 745 | E123: 92.0 | F123: 0.77 | G123: 1.8 | H123: 0.7 | I123: 6.0 | J123: 27 | K123: 420 | L123: 3600
A124: YKK500S4-8 | B124: 220 | C124: 18.6 | D124: 745 | E124: 91.1 | F124: 0.75 | G124: 1.8 | H124: 0.7 | I124: 6.0 | J124: 28 | K124: 423 | L124: 4000
A125: YKK500S3-8 | B125: 250 | C125: 21.1 | D125: 745 | E125: 91.3 | F125: 0.75 | G125: 1.8 | H125: 0.7 | I125: 6.0 | J125: 30 | K125: 476 | L125: 4110
A126: YKK500S2-8 | B126: 280 | C126: 23.2 | D126: 745 | E126: 91.6 | F126: 0.76 | G126: 1.8 | H126: 0.7 | I126: 6.0 | J126: 32 | K126: 530 | L126: 4290
A127: YKK500S1-8 | B127: 315 | C127: 25.7 | D127: 745 | E127: 92.0 | F127: 0.77 | G127: 1.8 | H127: 0.7 | I127: 6.0 | J127: 34 | K127: 588 | L127: 4380
A128: YKK5001-8 | B128: 355 | C128: 28.8 | D128: 745 | E128: 92.4 | F128: 0.77 | G128: 1.8 | H128: 0.7 | I128: 6.0 | J128: 36 | K128: 656 | L128: 4500
A129: YKK5002-8 | B129: 400 | C129: 32.0 | D129: 745 | E129: 92.5 | F129: 0.78 | G129: 1.8 | H129: 0.7 | I129: 6.0 | J129: 38 | K129: 710 | L129: 4780
A130: YKK5003-8 | B130: 450 | C130: 35.9 | D130: 745 | E130: 92.7 | F130: 0.78 | G130: 1.8 | H130: 0.7 | I130: 6.0 | J130: 40 | K130: 760 | L130: 4900
A131: YKK5004-8 | B131: 500 | C131: 39.3 | D131: 745 | E131: 93.1 | F131: 0.79 | G131: 1.8 | H131: 0.7 | I131: 6.0 | J131: 42 | K131: 800 | L131: 5050
A132: YKK5005-8 | B132: 560 | C132: 43.9 | D132: 745 | E132: 93.3 | F132: 0.79 | G132: 1.8 | H132: 0.7 | I132: 6.0 | J132: 44 | K132: 860 | L132: 5230
A133: YKK5006-8 | B133: 630 | C133: =B133*100/1.732/10/E133/F133 -> 47.3 | D133: 745 | E133: 93.8 | F133: 0.82 | G133: 1.8 | H133: 0.7 | I133: 6.0 | J133: 46 | K133: 920 | L133: 5500
A134: YKK560S3-8 | B134: 450 | C134: 35.9 | D134: 745 | E134: 92.7 | F134: 0.78 | G134: 1.8 | H134: 0.7 | I134: 6.0 | J134: 63 | K134: 810 | L134: 6410
A135: YKK560S2-8 | B135: 500 | C135: 39.3 | D135: 745 | E135: 93.1 | F135: 0.79 | G135: 1.8 | H135: 0.7 | I135: 6.0 | J135: 67 | K135: 890 | L135: 6510
A136: YKK560S1-8 | B136: 560 | C136: 43.9 | D136: 745 | E136: 93.3 | F136: 0.79 | G136: 1.8 | H136: 0.7 | I136: 6.0 | J136: 70 | K136: 988 | L136: 6740
A137: YKK5601-8 | B137: 630 | C137: 47.3 | D137: 745 | E137: 93.8 | F137: 0.82 | G137: 1.8 | H137: 0.7 | I137: 6.0 | J137: 74 | K137: 1098 | L137: 7090
A138: YKK5602-8 | B138: 710 | C138: 53.2 | D138: 745 | E138: 94.0 | F138: 0.82 | G138: 1.8 | H138: 0.7 | I138: 6.0 | J138: 77 | K138: 1170 | L138: 7330
A139: YKK5603-8 | B139: 800 | C139: 59.8 | D139: 745 | E139: 94.2 | F139: 0.82 | G139: 1.8 | H139: 0.7 | I139: 6.0 | J139: 80 | K139: 1230 | L139: 7600
A140: YKK5604-8 | B140: 900 | C140: 67.2 | D140: 745 | E140: 94.3 | F140: 0.82 | G140: 1.8 | H140: 0.7 | I140: 6.0 | J140: 84 | K140: 1290 | L140: 7850
A141: YKK5605-8 | B141: 1000 | C141: 75.4 | D141: 745 | E141: 94.5 | F141: 0.81 | G141: 1.8 | H141: 0.7 | I141: 6.0 | J141: 88 | K141: 1350 | L141: 8150
A142: YKK630S2-8 | B142: 710 | C142: 53.2 | D142: 745 | E142: 94.0 | F142: 0.82 | G142: 1.8 | H142: 0.7 | I142: 6.0 | J142: 145 | K142: 1221 | L142: 10400
A143: YKK630S1-8 | B143: 800 | C143: 59.8 | D143: 745 | E143: 94.2 | F143: 0.82 | G143: 1.8 | H143: 0.7 | I143: 6.0 | J143: 151 | K143: 1357 | L143: 10800
A144: YKK6301-8 | B144: 900 | C144: 67.2 | D144: 745 | E144: 94.3 | F144: 0.82 | G144: 1.8 | H144: 0.7 | I144: 6.0 | J144: 166 | K144: 1505 | L144: 11200
A145: YKK6302-8 | B145: 1120 | C145: 82.3 | D145: 745 | E145: 94.7 | F145: 0.83 | G145: 1.8 | H145: 0.7 | I145: 6.0 | J145: 172 | K145: 1620 | L145: 11600
A146: YKK6303-8 | B146: 1250 | C146: 91.7 | D146: 745 | E146: 94.8 | F146: 0.83 | G146: 1.8 | H146: 0.7 | I146: 6.0 | J146: 179 | K146: 1740 | L146: 12000
A147: YKK6304-8 | B147: 1400 | C147: 103 | D147: 745 | E147: 94.9 | F147: 0.83 | G147: 1.8 | H147: 0.7 | I147: 6.0 | J147: 185 | K147: 1850 | L147: 12400
A148: YKK6305-8 | B148: 1600 | C148: 117 | D148: 745 | E148: 94.9 | F148: 0.83 | G148: 1.8 | H148: 0.7 | I148: 6.0 | J148: 191 | K148: 1970 | L148: 12800
A149: YKK4505-10 | B149: 220 | C149: 19.4 | D149: 593 | E149: 91.0 | F149: 0.72 | G149: 1.8 | H149: 0.7 | I149: 5.5 | J149: 37 | K149: 680 | L149: 4500
A150: YKK500S1-10 | B150: 220 | C150: 19.4 | D150: 595 | E150: 91.0 | F150: 0.72 | G150: 1.8 | H150: 0.7 | I150: 5.5 | J150: 38 | K150: 689 | L150: 5750
A151: YKK5001-10 | B151: 250 | C151: 22.0 | D151: 595 | E151: 91.2 | F151: 0.72 | G151: 1.8 | H151: 0.7 | I151: 5.5 | J151: 39.3 | K151: 775 | L151: 5930
A152: YKK5002-10 | B152: 280 | C152: 23.9 | D152: 595 | E152: 91.5 | F152: 0.74 | G152: 1.8 | H152: 0.7 | I152: 5.5 | J152: 40.0 | K152: 865 | L152: 6120
A153: YKK5003-10 | B153: 315 | C153: 26.8 | D153: 595 | E153: 91.7 | F153: 0.74 | G153: 1.8 | H153: 0.7 | I153: 5.5 | J153: 41.5 | K153: 920 | L153: 6300
A154: YKK5004-10 | B154: 355 | C154: 29.7 | D154: 595 | E154: 92.1 | F154: 0.75 | G154: 1.8 | H154: 0.7 | I154: 5.5 | J154: 42.8 | K154: 1000 | L154: 6470
A155: YKK5005-10 | B155: 400 | C155: 33.4 | D155: 595 | E155: 92.3 | F155: 0.75 | G155: 1.8 | H155: 0.7 | I155: 5.5 | J155: 44.0 | K155: 1070 | L155: 6640
A156: YKK5006-10 | B156: 450 | C156: 37.0 | D156: 595 | E156: 92.5 | F156: 0.76 | G156: 1.8 | H156: 0.7 | I156: 5.5 | J156: 45.3 | K156: 1160 | L156: 6800
A157: YKK560S4-10 | B157: 315 | C157: 26.8 | D157: 595 | E157: 91.7 | F157: 0.74 | G157: 1.8 | H157: 0.7 | I157: 6.0 | J157: 78.0 | K157: 1014 | L157: 7350
A158: YKK560S3-10 | B158: 355 | C158: 29.7 | D158: 595 | E158: 92.1 | F158: 0.75 | G158: 1.8 | H158: 0.7 | I158: 6.0 | J158: 83.0 | K158: 1131 | L158: 8100
A159: YKK560S2-10 | B159: 400 | C159: 33.4 | D159: 595 | E159: 92.3 | F159: 0.75 | G159: 1.8 | H159: 0.7 | I159: 6.0 | J159: 87.0 | K159: 1261 | L159: 7850
A160: YKK560S1-10 | B160: 450 | C160: 37.0 | D160: 595 | E160: 92.5 | F160: 0.76 | G160: 1.8 | H160: 0.7 | I160: 6.0 | J160: 92.0 | K160: 1403 | L160: 8100
A161: YKK5601-10 | B161: 500 | C161: 40.4 | D161: 595 | E161: 92.7 | F161: 0.77 | G161: 1.8 | H161: 0.7 | I161: 6.0 | J161: 97.0 | K161: 1544 | L161: 8300
A162: YKK5602-10 | B162: 560 | C162: 44.6 | D162: 595 | E162: 92.9 | F162: 0.78 | G162: 1.8 | H162: 0.7 | I162: 6.0 | J162: 102 | K162: 1620 | L162: 8500
A163: YKK5603-10 | B163: 630 | C163: 50.1 | D163: 595 | E163: 93.1 | F163: 0.78 | G163: 1.8 | H163: 0.7 | I163: 6.0 | J163: 107 | K163: 1710 | L163: 8710
A164: YKK5604-10 | B164: 710 | C164: 56.3 | D164: 595 | E164: 93.3 | F164: 0.78 | G164: 1.8 | H164: 0.7 | I164: 6.0 | J164: 112 | K164: 1820 | L164: 8900
A165: YKK5605-10 | B165: 800 | C165: 63.1 | D165: 595 | E165: 93.8 | F165: 0.78 | G165: 1.8 | H165: 0.7 | I165: 6.0 | J165: 117 | K165: 1930 | L165: 9120
A166: YKK630S4-10 | B166: 560 | C166: 44.6 | D166: 595 | E166: 92.9 | F166: 0.78 | G166: 1.8 | H166: 0.7 | I166: 6.0 | J166: 153 | K166: 1710 | L166: 10600
A167: YKK630S3-10 | B167: 630 | C167: 50.1 | D167: 595 | E167: 93.1 | F167: 0.78 | G167: 1.8 | H167: 0.7 | I167: 6.0 | J167: 162 | K167: 1902 | L167: 11000
A168: YKK630S2-10 | B168: 710 | C168: 56.3 | D168: 595 | E168: 93.3 | F168: 0.78 | G168: 1.8 | H168: 0.7 | I168: 6.0 | J168: 169 | K168: 2116 | L168: 11400
A169: YKK630S1-10 | B169: 800 | C169: 63.1 | D169: 595 | E169: 93.8 | F169: 0.78 | G169: 1.8 | H169: 0.7 | I169: 6.0 | J169: 178 | K169: 2355 | L169: 11800
A170: YKK6301-10 | B170: 900 | C170: 69.1 | D170: 595 | E170: 94.0 | F170: 0.80 | G170: 1.8 | H170: 0.7 | I170: 6.0 | J170: 185 | K170: 2460 | L170: 12200
A171: YKK6302-10 | B171: 1000 | C171: 76.7 | D171: 595 | E171: 94.1 | F171: 0.80 | G171: 1.8 | H171: 0.7 | I171: 6.0 | J171: 193 | K171: 2570 | L171: 12600
A172: YKK6303-10 | B172: 1120 | C172: 85.8 | D172: 595 | E172: 94.2 | F172: 0.80 | G172: 1.8 | H172: 0.7 | I172: 6.0 | J172: 201 | K172: 2775 | L172: 13000
A173: YKK6304-10 | B173: 1250 | C173: 95.8 | D173: 595 | E173: 94.2 | F173: 0.80 | G173: 1.8 | H173: 0.7 | I173: 6.0 | J173: 210 | K173: 2880 | L173: 13400
A174: YKK6305-10 | B174: 1400 | C174: 107.1 | D174: 595 | E174: 94.3 | F174: 0.80 | G174: 1.8 | H174: 0.7 | I174: 6.0 | J174: 217 | K174: 2985 | L174: 13800
A175: YKK5003-12 | B175: 220 | C175: 19.4 | D175: 496 | E175: 90.9 | F175: 0.72 | G175: 1.8 | H175: 0.7 | I175: 5.5 | J175: 85.0 | K175: 1060 | L175: 5750
A176: YKK5004-12 | B176: 250 | C176: 22.0 | D176: 496 | E176: 91.1 | F176: 0.72 | G176: 1.8 | H176: 0.7 | I176: 5.5 | J176: 87.0 | K176: 1150 | L176: 5950
A177: YKK5005-12 | B177: 280 | C177: 24.6 | D177: 496 | E177: 91.3 | F177: 0.72 | G177: 1.8 | H177: 0.7 | I177: 5.5 | J177: 89.0 | K177: 1190 | L177: 6150
A178: YKK5006-12 | B178: 315 | C178: 27.6 | D178: 496 | E178: 91.5 | F178: 0.72 | G178: 1.8 | H178: 0.7 | I178: 5.5 | J178: 90.0 | K178: 1250 | L178: 6350
A179: YKK560S4-12 | B179: 220 | C179: 19.4 | D179: 496 | E179: 90.9 | F179: 0.72 | G179: 1.8 | H179: 0.7 | I179: 6.0 | J179: 88.0 | K179: 1135 | L179: 7350
A180: YKK560S3-12 | B180: 250 | C180: 22.0 | D180: 496 | E180: 91.1 | F180: 0.72 | G180: 1.8 | H180: 0.7 | I180: 6.0 | J180: 97.0 | K180: 1210 | L180: 7350
A181: YKK560S2-12 | B181: 280 | C181: 24.6 | D181: 496 | E181: 91.3 | F181: 0.72 | G181: 1.8 | H181: 0.7 | I181: 6.0 | J181: 100 | K181: 1418 | L181: 7850
A182: YKK560S1-12 | B182: 315 | C182: 27.6 | D182: 496 | E182: 91.5 | F182: 0.72 | G182: 1.8 | H182: 0.7 | I182: 6.0 | J182: 108 | K182: 1580 | L182: 8100
A183: YKK5601-12 | B183: 355 | C183: 31.0 | D183: 496 | E183: 91.8 | F183: 0.72 | G183: 1.8 | H183: 0.7 | I183: 6.0 | J183: 115 | K183: 1763 | L183: 8300
A184: YKK5602-12 | B184: 400 | C184: 34.4 | D184: 496 | E184: 92.0 | F184: 0.73 | G184: 1.8 | H184: 0.7 | I184: 6.0 | J184: 120 | K184: 1852 | L184: 8700
A185: YKK5603-12 | B185: 450 | C185: 38.6 | D185: 496 | E185: 92.2 | F185: 0.73 | G185: 1.8 | H185: 0.7 | I185: 6.0 | J185: 125 | K185: 1955 | L185: 9100
A186: YKK5604-12 | B186: 500 | C186: 42.8 | D186: 496 | E186: 92.5 | F186: 0.73 | G186: 1.8 | H186: 0.7 | I186: 6.0 | J186: 130 | K186: 2050 | L186: 9500
A187: YKK5605-12 | B187: 560 | C187: 47.0 | D187: 496 | E187: 92.9 | F187: 0.74 | G187: 1.8 | H187: 0.7 | I187: 6.0 | J187: 136 | K187: 2154 | L187: 9900
A188: YKK630S4-12 | B188: 400 | C188: 34.4 | D188: 496 | E188: 92.0 | F188: 0.73 | G188: 1.8 | H188: 0.7 | I188: 6.0 | J188: 139 | K188: 1967 | L188: 10600
A189: YKK630S3-12 | B189: 450 | C189: 38.6 | D189: 496 | E189: 92.2 | F189: 0.73 | G189: 1.8 | H189: 0.7 | I189: 6.0 | J189: 156 | K189: 2190 | L189: 11000
A190: YKK630S2-12 | B190: 500 | C190: 42.8 | D190: 496 | E190: 92.5 | F190: 0.73 | G190: 1.8 | H190: 0.7 | I190: 6.0 | J190: 172 | K190: 2411 | L190: 11400
A191: YKK630S1-12 | B191: 560 | C191: 47.0 | D191: 496 | E191: 92.9 | F191: 0.74 | G191: 1.8 | H191: 0.7 | I191: 6.0 | J191: 180 | K191: 2672 | L191: 11800
A192: YKK6301-12 | B192: 630 | C192: 52.8 | D192: 496 | E192: 93.1 | F192: 0.74 | G192: 1.8 | H192: 0.7 | I192: 6.0 | J192: 188 | K192: 2900 | L192: 12200
A193: YKK6302-12 | B193: 710 | C193: 59.4 | D193: 496 | E193: 93.3 | F193: 0.74 | G193: 1.8 | H193: 0.7 | I193: 6.0 | J193: 195 | K193: 3120 | L193: 12600
A194: YKK6303-12 | B194: 800 | C194: 66.5 | D194: 496 | E194: 93.8 | F194: 0.74 | G194: 1.8 | H194: 0.7 | I194: 6.0 | J194: 200 | K194: 3350 | L194: 13000
A195: YKK6304-12 | B195: 900 | C195: 74.9 | D195: 496 | E195: 93.8 | F195: 0.74 | G195: 1.8 | H195: 0.7 | I195: 6.0 | J195: 208 | K195: 3570 | L195: 13400
A196: YKK6305-12 | B196: 1000 | C196: 83.2 | D196: 496 | E196: 93.8 | F196: 0.74 | G196: 1.8 | H196: 0.7 | I196: 6.0 | J196: 215 | K196: 3770 | L196: 13800
A198: 注：表中重量仅供参考

Sheet Y、YKS、YL 6KV
A1: Y、YKS、YL系列（6kV）高压三相异步电动机技术数据
A2: 型号 | B2: 额定功率（kW） | C2: 定子电流（A） | D2: 额定转速（r/min） | E2: 效率（%） | F2: 功率因数（cosψ） | G2: 最大转矩额定转矩 | H2: 堵转转矩额定转矩 | I2: 堵转电流额定电流 | J2: 电动机转动惯量 | L2: 概量（kg)
J3: 电机 Jm （kg·m2） | K3: 允许负载 J (kg·m2） | L3: Y | M3: YKS | N3: YL
A4: Y3551-2 | B4: 220 | C4: =B4/6/F4/E4/1.732*100 -> 26.8 | D4: 2967 | E4: 92.0 | F4: 0.86 | G4: 1.8 | H4: 0.6 | I4: 7.0 | J4: 2.2 | K4: 22 | L4: 1745 | M4: =L4+505 -> 2250 | N4: 2000
A5: Y3552-2 | B5: 250 | C5: =B5/6/F5/E5/1.732*100 -> 30.4 | D5: 2968 | E5: 92.1 | F5: 0.86 | G5: 1.8 | H5: 0.6 | I5: 7.0 | J5: 2.5 | K5: 24 | L5: 1795 | M5: 2290 | N5: 2240
A6: Y3553-2 | B6: 280 | C6: 33.9 | D6: 2970 | E6: 92.3 | F6: 0.86 | G6: 1.8 | H6: 0.6 | I6: 7.0 | J6: 2.7 | K6: 26 | L6: 1855 | M6: =L6+505 -> 2360 | N6: 2310
A7: Y3554-2 | B7: 315 | C7: 38.0 | D7: 2970 | E7: 92.7 | F7: 0.86 | G7: 1.8 | H7: 0.6 | I7: 7.0 | J7: 3 | K7: 27 | L7: 1890 | M7: 2400 | N7: 2350
A8: Y3555-2 | B8: 355 | C8: 42.7 | D8: 2973 | E8: 93.0 | F8: 0.86 | G8: 1.8 | H8: 0.6 | I8: 7.0 | J8: 3.4 | K8: 27.5 | L8: 1980 | M8: 2490 | N8: 2440
A9: Y3556-2 | B9: 400 | C9: 47.9 | D9: 2973 | E9: 93.4 | F9: 0.86 | G9: 1.8 | H9: 0.6 | I9: 7.0 | J9: 3.7 | K9: 28 | L9: 2045 | M9: 2500 | N9: 2450
A10: Y4001-2 | B10: 450 | C10: 53.7 | D10: 2975 | E10: 93.7 | F10: 0.86 | G10: 1.8 | H10: 0.6 | I10: 7.0 | J10: 4.8 | K10: 32 | L10: 2410 | M10: 3080 | N10: 2920
A11: Y4002-2 | B11: 500 | C11: 58.8 | D11: 2976 | E11: 94.0 | F11: 0.87 | G11: 1.8 | H11: 0.6 | I11: 7.0 | J11: 5.2 | K11: 33 | L11: 2470 | M11: 3160 | N11: 3000
A12: Y4003-2 | B12: 560 | C12: 65.8 | D12: 2977 | E12: 94.1 | F12: 0.87 | G12: 1.8 | H12: 0.6 | I12: 7.0 | J12: 6 | K12: 34 | L12: 2560 | M12: 3270 | N12: 3160
A13: Y4004-2 | B13: 630 | C13: 73.9 | D13: 2978 | E13: 94.3 | F13: 0.87 | G13: 1.8 | H13: 0.6 | I13: 7.0 | J13: 6.4 | K13: 35 | L13: 2610 | M13: 3370 | N13: 3260
A14: Y4005-2 | B14: 710 | C14: 83.2 | D14: 2978 | E14: 94.4 | F14: 0.87 | G14: 1.8 | H14: 0.6 | I14: 7.0 | J14: 6.8 | K14: 36 | L14: 2670 | M14: 3470 | N14: 3370
A15: Y450S1-2 | B15: 710 | C15: 83.2 | D15: 2977 | E15: 94.4 | F15: 0.87 | G15: 1.8 | H15: 0.6 | I15: 7.0 | J15: 8.4 | K15: 42 | L15: 3580 | M15: 4230 | N15: 4000
A16: Y4501-2 | B16: 800 | C16: 93.4 | D16: 2976 | E16: 94.7 | F16: 0.87 | G16: 1.8 | H16: 0.6 | I16: 7.0 | J16: 9.5 | K16: 44 | L16: 3740 | M16: =M15+160 -> 4390 | N16: 4160
A17: Y4502-2 | B17: 900 | C17: 105 | D17: 2974 | E17: 94.8 | F17: 0.87 | G17: 1.8 | H17: 0.6 | I17: 7.0 | J17: 10.5 | K17: 46 | L17: 3900 | M17: =M16+160 -> 4550 | N17: 4320
A18: Y4503-2 | B18: 1000 | C18: 115 | D18: 2977 | E18: 94.9 | F18: 0.88 | G18: 1.8 | H18: 0.6 | I18: 7.0 | J18: 11.6 | K18: 48 | L18: 4060 | M18: 4700 | N18: 4470
A19: Y4504-2 | B19: 1120 | C19: 129 | D19: 2978 | E19: 95.0 | F19: 0.88 | G19: 1.8 | H19: 0.6 | I19: 7.0 | J19: 12.8 | K19: 50 | L19: 4220 | M19: 4800 | N19: 4550
A20: Y5001-2 | B20: 1120 | C20: 129 | D20: 2978 | E20: 95.0 | F20: 0.88 | G20: 1.8 | H20: 0.6 | I20: 7.0 | J20: 15.9 | K20: 90 | L20: 4000 | M20: 4810 | N20: 4400
A21: Y5002-2 | B21: 1250 | C21: 144 | D21: 2979 | E21: 95.2 | F21: 0.88 | G21: 1.8 | H21: 0.6 | I21: 7.0 | J21: 17.7 | K21: 100 | L21: 4300 | M21: 5000 | N21: 4600
A22: Y5003-2 | B22: 1400 | C22: 161 | D22: 2979 | E22: 95.3 | F22: 0.88 | G22: 1.8 | H22: 0.6 | I22: 7.0 | J22: 19.9 | K22: 101 | L22: 4600 | M22: 5300 | N22: 4900
A23: Y5004-2 | B23: 1600 | C23: 183 | D23: 2978 | E23: 95.4 | F23: 0.88 | G23: 1.8 | H23: 0.6 | I23: 7.0 | J23: 22 | K23: 102 | L23: 4900 | M23: 5600 | N23: 5200
A24: Y5005-2 | B24: 1800 | C24: 206 | D24: 2979 | E24: 95.5 | F24: 0.88 | G24: 1.8 | H24: 0.6 | I24: 7.0 | J24: 24.2 | K24: 103 | L24: 5200 | M24: 5900 | N24: 5500
A25: Y560S1-2 | B25: 1800 | C25: 206 | D25: 2981 | E25: 95.5 | F25: 0.88 | G25: 1.8 | H25: 0.6 | I25: 7.0 | J25: 30.1 | K25: 106 | L25: 8000 | M25: 8750 | N25: 8300
A26: Y5601-2 | B26: 2000 | C26: 229 | D26: 2981 | E26: 95.7 | F26: 0.88 | G26: 1.8 | H26: 0.6 | I26: 7.0 | J26: 33.7 | K26: 107 | L26: 8250 | M26: 9000 | N26: 8550
A27: Y5602-2 | B27: 2100 | C27: 240 | D27: 2981 | E27: 95.7 | F27: 0.88 | G27: 1.8 | H27: 0.6 | I27: 7.0 | J27: 35.7 | K27: 107 | L27: 8380 | M27: 9150 | N27: 8700
A28: Y5603-2 | B28: 2240 | C28: 256 | D28: 2982 | E28: 95.8 | F28: 0.88 | G28: 1.8 | H28: 0.6 | I28: 7.0 | J28: 37.8 | K28: 108 | L28: 8500 | M28: 9250 | N28: 8800
A29: Y5604-2 | B29: 2350 | C29: 268 | D29: 2982 | E29: 95.8 | F29: 0.88 | G29: 1.8 | H29: 0.6 | I29: 7.0 | J29: 40 | K29: 109 | L29: 8700 | M29: 9450 | N29: 9000
A30: Y5605-2 | B30: 2500 | C30: 282 | D30: 2982 | E30: 95.9 | F30: 0.89 | G30: 1.8 | H30: 0.6 | I30: 7.0 | J30: 43 | K30: 110 | L30: 8900 | M30: 9650 | N30: 9200
A31: Y630S1-2 | B31: 2500 | C31: 282 | D31: 2982 | E31: 95.9 | F31: 0.89 | G31: 1.8 | H31: 0.6 | I31: 7.0 | J31: 46.4 | K31: 118 | L31: 9250 | M31: 10050 | N31: 9600
A32: Y6301-2 | B32: 2650 | C32: 299 | D32: 2982 | E32: 95.9 | F32: 0.89 | G32: 1.8 | H32: 0.6 | I32: 7.0 | J32: 48.5 | K32: 120 | L32: 9450 | M32: 10250 | N32: 9800
A33: Y6302-2 | B33: 2800 | C33: 315 | D33: 2982 | E33: 96.0 | F33: 0.89 | G33: 1.8 | H33: 0.6 | I33: 7.0 | J33: 50.7 | K33: 123 | L33: 9650 | M33: 10450 | N33: 10000
A34: Y6303-2 | B34: 2900 | C34: 327 | D34: 2982 | E34: 96.0 | F34: 0.89 | G34: 1.8 | H34: 0.6 | I34: 7.0 | J34: 53.5 | K34: 127 | L34: 9850 | M34: 10650 | N34: 10200
A35: Y6304-2 | B35: 3150 | C35: 354 | D35: 2983 | E35: 96.1 | F35: 0.89 | G35: 1.8 | H35: 0.6 | I35: 7.0 | J35: 56.1 | K35: 130 | L35: 10050 | M35: 10850 | N35: 10400
A36: Y6305-2 | B36: 3350 | C36: 377 | D36: 2983 | E36: 96.1 | F36: 0.89 | G36: 1.8 | H36: 0.6 | I36: 7.0 | J36: 59.1 | K36: 133 | L36: 10250 | M36: 11050 | N36: 10600
A37: Y6306-2 | B37: 3550 | C37: 399 | D37: 2983 | E37: 96.1 | F37: 0.89 | G37: 1.8 | H37: 0.6 | I37: 7.0 | J37: 62 | K37: 136 | L37: 10450 | M37: 11250 | N37: 10800
A38: Y3551-4 | B38: 220 | C38: 26.9 | D38: 1477 | E38: 92.5 | F38: 0.85 | G38: 1.8 | H38: 0.8 | I38: 6.5 | J38: 3 | K38: 78 | L38: 1930 | M38: 2410 | N38: 2310
A39: Y3552-4 | B39: 250 | C39: 30.6 | D39: 1478 | E39: 92.6 | F39: 0.85 | G39: 1.8 | H39: 0.8 | I39: 6.5 | J39: 3.5 | K39: 88 | L39: 1990 | M39: 2440 | N39: 2340
A40: Y3553-4 | B40: 280 | C40: 33.8 | D40: 1478 | E40: 92.7 | F40: 0.86 | G40: 1.8 | H40: 0.8 | I40: 6.5 | J40: 3.8 | K40: 97 | L40: 2050 | M40: 2490 | N40: 2390
A41: Y3554-4 | B41: 315 | C41: 37.9 | D41: 1478 | E41: 92.9 | F41: 0.86 | G41: 1.8 | H41: 0.8 | I41: 6.5 | J41: 4 | K41: 108 | L41: 2110 | M41: 2530 | N41: 2430
A42: Y3555-4 | B42: 355 | C42: 42.7 | D42: 1478 | E42: 93.1 | F42: 0.86 | G42: 1.8 | H42: 0.8 | I42: 6.5 | J42: 4.3 | K42: 117 | L42: 2170 | M42: 2580 | N42: 2470
A43: Y3556-4 | B43: 400 | C43: 48.0 | D43: 1478 | E43: 93.3 | F43: 0.86 | G43: 1.8 | H43: 0.8 | I43: 6.5 | J43: 4.5 | K43: 128 | L43: 2230 | M43: 2630 | N43: 2510
A44: Y400S2-4 | B44: 355 | C44: 42.7 | D44: 1485 | E44: 93.1 | F44: 0.86 | G44: 1.8 | H44: 0.8 | I44: 6.5 | J44: 5.8 | K44: 120 | L44: 2270 | M44: 3070 | N44: 3020
A45: Y400S1-4 | B45: 400 | C45: 48.0 | D45: 1485 | E45: 93.3 | F45: 0.86 | G45: 1.8 | H45: 0.8 | I45: 6.5 | J45: 6 | K45: 133 | L45: 2345 | M45: 3150 | N45: 3100
A46: Y4001-4 | B46: 450 | C46: 53.9 | D46: 1485 | E46: 93.5 | F46: 0.86 | G46: 1.8 | H46: 0.8 | I46: 6.5 | J46: 6.5 | K46: 147 | L46: 2395 | M46: 3250 | N46: 3200
A47: Y4002-4 | B47: 500 | C47: 59.0 | D47: 1485 | E47: 93.7 | F47: 0.87 | G47: 1.8 | H47: 0.8 | I47: 6.5 | J47: 7 | K47: 161 | L47: 2450 | M47: 3340 | N47: 3290
A48: Y4003-4 | B48: 560 | C48: 66.0 | D48: 1485 | E48: 93.9 | F48: 0.87 | G48: 1.8 | H48: 0.8 | I48: 6.5 | J48: 8 | K48: 178 | L48: 2510 | M48: 3460 | N48: 3410
A49: Y4004-4 | B49: 630 | C49: 74.0 | D49: 1485 | E49: 94.2 | F49: 0.87 | G49: 1.8 | H49: 0.8 | I49: 6.5 | J49: 9 | K49: 195 | L49: 2540 | M49: 3550 | N49: 3530
A50: Y4005-4 | B50: 710 | C50: 83.2 | D50: 1485 | E50: 94.4 | F50: 0.87 | G50: 1.8 | H50: 0.8 | I50: 6.5 | J50: 10 | K50: 212 | L50: 2580 | M50: 3640 | N50: 3650
A51: Y450S2-4 | B51: 630 | C51: 74.0 | D51: 1485 | E51: 94.2 | F51: 0.87 | G51: 1.8 | H51: 0.8 | I51: 6.5 | J51: 11 | K51: 197 | L51: 2550 | M51: 3960 | N51: 3640
A52: Y450S1-4 | B52: 710 | C52: 83.2 | D52: 1485 | E52: 94.4 | F52: 0.87 | G52: 1.8 | H52: 0.8 | I52: 6.5 | J52: 12 | K52: 218 | L52: 2710 | M52: 4100 | N52: 3780
A53: Y4501-4 | B53: 800 | C53: 93.5 | D53: 1486 | E53: 94.6 | F53: 0.87 | G53: 1.8 | H53: 0.8 | I53: 6.5 | J53: 13 | K53: 241 | L53: 2880 | M53: 4240 | N53: 3920
A54: Y4502-4 | B54: 900 | C54: 105 | D54: 1487 | E54: 94.7 | F54: 0.87 | G54: 1.8 | H54: 0.8 | I54: 6.5 | J54: 14 | K54: 266 | L54: 3000 | M54: 4380 | N54: 4060
A55: Y4503-4 | B55: 1000 | C55: 117 | D55: 1487 | E55: 94.8 | F55: 0.87 | G55: 1.8 | H55: 0.8 | I55: 6.5 | J55: 14 | K55: 282 | L55: 3120 | M55: 4520 | N55: 4200
A56: Y4504-4 | B56: 1120 | C56: 129 | D56: 1487 | E56: 94.9 | F56: 0.88 | G56: 1.8 | H56: 0.8 | I56: 6.5 | J56: 16 | K56: 295 | L56: 3350 | M56: 4660 | N56: 4340
A57: Y500S1-4 | B57: 1000 | C57: 117 | D57: 1485 | E57: 94.8 | F57: 0.87 | G57: 1.8 | H57: 0.7 | I57: 6.5 | J57: 24 | K57: 290 | L57: 4400 | M57: 5310 | N57: 4720
A58: Y5001-4 | B58: 1120 | C58: 129 | D58: 1485 | E58: 94.9 | F58: 0.88 | G58: 1.8 | H58: 0.7 | I58: 6.5 | J58: 26 | K58: 318 | L58: 4500 | M58: 5410 | N58: 4820
A59: Y5002-4 | B59: 1250 | C59: 144 | D59: 1485 | E59: 95.1 | F59: 0.88 | G59: 1.8 | H59: 0.7 | I59: 6.5 | J59: 30 | K59: 347 | L59: 4600 | M59: 5510 | N59: 4920
A60: Y5003-4 | B60: 1400 | C60: 161 | D60: 1485 | E60: 95.2 | F60: 0.88 | G60: 1.8 | H60: 0.7 | I60: 6.5 | J60: 32 | K60: 380 | L60: 4800 | M60: 5710 | N60: 5120
A61: Y5004-4 | B61: 1600 | C61: 182 | D61: 1485 | E61: 95.3 | F61: 0.89 | G61: 1.8 | H61: 0.7 | I61: 6.5 | J61: 34 | K61: 400 | L61: 5000 | M61: 5810 | N61: 5320
A62: Y5005-4 | B62: 1800 | C62: 204 | D62: 1485 | E62: 95.4 | F62: 0.89 | G62: 1.8 | H62: 0.7 | I62: 6.5 | J62: 36 | K62: 420 | L62: 5200 | M62: 5950 | N62: 5520
A63: Y560S2-4 | B63: 1600 | C63: 182 | D63: 1488 | E63: 95.3 | F63: 0.89 | G63: 1.8 | H63: 0.6 | I63: 6.5 | J63: 57 | K63: 420 | L63: 6225 | M63: 7150 | N63: 6550
A64: Y560S1-4 | B64: 1800 | C64: 204 | D64: 1488 | E64: 95.4 | F64: 0.89 | G64: 1.8 | H64: 0.6 | I64: 6.5 | J64: 60 | K64: 460 | L64: 6720 | M64: 7640 | N64: 7040
A65: Y5601-4 | B65: 2000 | C65: 226 | D65: 1488 | E65: 95.6 | F65: 0.89 | G65: 1.8 | H65: 0.6 | I65: 6.5 | J65: 66 | K65: 498 | L65: 7150 | M65: 8100 | N65: 7530
A66: Y5602-4 | B66: 2100 | C66: 238 | D66: 1488 | E66: 95.6 | F66: 0.89 | G66: 1.8 | H66: 0.6 | I66: 6.5 | J66: 70 | K66: 510 | L66: 7630 | M66: 8560 | N66: 8020
A67: Y5603-4 | B67: 2240 | C67: =B67/6/F67/E67/1.732*100 -> 253 | D67: 1488 | E67: 95.7 | F67: 0.89 | G67: 1.8 | H67: 0.6 | I67: 6.5 | J67: 75 | K67: 520 | L67: 8110 | M67: 8720 | N67: 8510
A68: Y5604-4 | B68: 2350 | C68: 266 | D68: 1488 | E68: 95.7 | F68: 0.89 | G68: 1.8 | H68: 0.6 | I68: 6.5 | J68: 80 | K68: 529 | L68: 8600 | M68: 9170 | N68: 9000
A69: Y5605-4 | B69: 2500 | C69: 282 | D69: 1488 | E69: 95.8 | F69: 0.89 | G69: 1.8 | H69: 0.6 | I69: 6.5 | J69: 86 | K69: 538 | L69: 9085 | M69: 9620 | N69: 9490
A70: Y630S2-4 | B70: 2240 | C70: 253 | D70: 1488 | E70: 95.7 | F70: 0.89 | G70: 1.8 | H70: 0.6 | I70: 6.5 | J70: 102 | K70: 540 | L70: 9250 | M70: 10050 | N70: 9700
A71: Y630S1-4 | B71: 2500 | C71: 282 | D71: 1488 | E71: 95.8 | F71: 0.89 | G71: 1.8 | H71: 0.6 | I71: 6.5 | J71: 112 | K71: 584 | L71: 9650 | M71: 10650 | N71: 10250
A72: Y6301-4 | B72: 2650 | C72: 299 | D72: 1488 | E72: 95.8 | F72: 0.89 | G72: 1.8 | H72: 0.6 | I72: 6.5 | J72: 114 | K72: 608 | L72: 10010 | M72: 11000 | N72: 10650
A73: Y6302-4 | B73: 2800 | C73: 316 | D73: 1488 | E73: 95.9 | F73: 0.89 | G73: 1.8 | H73: 0.6 | I73: 6.5 | J73: 116 | K73: 631 | L73: 10450 | M73: 11400 | N73: 11000
A74: Y6303-4 | B74: 2900 | C74: 327 | D74: 1488 | E74: 96.0 | F74: 0.89 | G74: 1.8 | H74: 0.6 | I74: 6.5 | J74: 118 | K74: 649 | L74: 10850 | M74: 12100 | N74: 11600
A75: Y6304-4 | B75: 3150 | C75: 354 | D75: 1488 | E75: 96.1 | F75: 0.89 | G75: 1.8 | H75: 0.6 | I75: 6.5 | J75: 120 | K75: 665 | L75: 11260 | M75: 12800 | N75: 12200
A76: Y6305-4 | B76: 3350 | C76: 377 | D76: 1488 | E76: 96.1 | F76: 0.89 | G76: 1.8 | H76: 0.6 | I76: 6.5 | J76: 122 | K76: 683 | L76: 11660 | M76: 13500 | N76: 12850
A77: Y6306-4 | B77: 3550 | C77: 399 | D77: 1488 | E77: 96.1 | F77: 0.89 | G77: 1.8 | H77: 0.6 | I77: 6.5 | J77: 124 | K77: 700 | L77: 12050 | M77: 14200 | N77: 13400
A78: Y3554-6 | B78: 220 | C78: =B78/6/F78/E78/1.732*100 -> 28.0 | D78: 987 | E78: 92.2 | F78: 0.82 | G78: 1.8 | H78: 0.8 | I78: 6.0 | J78: 6 | K78: 210 | L78: 2140 | M78: 2540 | N78: 2440
A79: Y3555-6 | B79: 250 | C79: 31.7 | D79: 987 | E79: 92.5 | F79: 0.82 | G79: 1.8 | H79: 0.8 | I79: 6.0 | J79: 7 | K79: 236 | L79: 2170 | M79: 2570 | N79: 2470
A80: Y3556-6 | B80: 280 | C80: 35.0 | D80: 987 | E80: 92.7 | F80: 0.83 | G80: 1.8 | H80: 0.8 | I80: 6.0 | J80: 8 | K80: 255 | L80: 2200 | M80: 2600 | N80: 2560
A81: Y400S1-6 | B81: 280 | C81: 35.0 | D81: 988 | E81: 92.7 | F81: 0.83 | G81: 1.8 | H81: 0.8 | I81: 6.0 | J81: 10 | K81: 262 | L81: 2300 | M81: 2750 | N81: 2600
A82: Y4001-6 | B82: 315 | C82: 39.3 | D82: 988 | E82: 93.0 | F82: 0.83 | G82: 1.8 | H82: 0.8 | I82: 6.0 | J82: 11 | K82: 291 | L82: 2400 | M82: 2850 | N82: 2800
A83: Y4002-6 | B83: 355 | C83: 44.2 | D83: 988 | E83: 93.2 | F83: 0.83 | G83: 1.8 | H83: 0.8 | I83: 6.0 | J83: 11.5 | K83: 324 | L83: 2530 | M83: 2980 | N83: 2930
A84: Y4003-6 | B84: 400 | C84: 49.7 | D84: 988 | E84: 93.3 | F84: 0.83 | G84: 1.8 | H84: 0.8 | I84: 6.0 | J84: 12 | K84: 361 | L84: 2660 | M84: 3110 | N84: 3060
A85: Y4004-6 | B85: 450 | C85: 55.1 | D85: 988 | E85: 93.6 | F85: 0.84 | G85: 1.8 | H85: 0.8 | I85: 6.0 | J85: 13 | K85: 385 | L85: 2800 | M85: 3240 | N85: 3190
A86: Y4005-6 | B86: 500 | C86: 60.3 | D86: 988 | E86: 93.9 | F86: 0.85 | G86: 1.8 | H86: 0.8 | I86: 6.0 | J86: 14 | K86: 400 | L86: 2950 | M86: 3370 | N86: 3320
A87: Y450S2-6 | B87: 450 | C87: 55.1 | D87: 988 | E87: 93.6 | F87: 0.84 | G87: 1.8 | H87: 0.8 | I87: 6.0 | J87: 15 | K87: 401 | L87: 2990 | M87: =L87+800 -> 3790 | N87: 3470
A88: Y450S1-6 | B88: 500 | C88: 60.3 | D88: 988 | E88: 93.9 | F88: 0.85 | G88: 1.8 | H88: 0.8 | I88: 6.0 | J88: 16 | K88: 440 | L88: 3100 | M88: =L88+800 -> 3900 | N88: 3680
A89: Y4501-6 | B89: 560 | C89: 67.4 | D89: 988 | E89: 94.1 | F89: 0.85 | G89: 1.8 | H89: 0.8 | I89: 6.0 | J89: 17 | K89: 487 | L89: 3220 | M89: 4020 | N89: 3810
A90: Y4502-6 | B90: 630 | C90: 75.7 | D90: 989 | E90: 94.2 | F90: 0.85 | G90: 1.8 | H90: 0.8 | I90: 6.0 | J90: 20 | K90: 540 | L90: 3350 | M90: 4150 | N90: 3940
A91: Y4503-6 | B91: 710 | C91: 85.1 | D91: 989 | E91: 94.4 | F91: 0.85 | G91: 1.8 | H91: 0.8 | I91: 6.0 | J91: 22 | K91: 580 | L91: 3460 | M91: 4260 | N91: 4070
A92: Y4504-6 | B92: 800 | C92: 95.7 | D92: 989 | E92: 94.6 | F92: 0.85 | G92: 1.8 | H92: 0.8 | I92: 6.0 | J92: 25 | K92: 620 | L92: 3580 | M92: 4380 | N92: 4200
A93: Y5001-6 | B93: 710 | C93: 85.1 | D93: 990 | E93: 94.4 | F93: 0.85 | G93: 1.8 | H93: 0.7 | I93: 6.0 | J93: 32 | K93: 599 | L93: 4100 | M93: 5010 | N93: 4450
A94: Y5002-6 | B94: 800 | C94: 95.7 | D94: 989 | E94: 94.6 | F94: 0.85 | G94: 1.8 | H94: 0.7 | I94: 6.0 | J94: 34 | K94: 665 | L94: 4200 | M94: 5110 | N94: 4550
A95: Y5002-6 | B95: 900 | C95: 108 | D95: 989 | E95: 94.7 | F95: 0.85 | G95: 1.8 | H95: 0.7 | I95: 6.0 | J95: 40 | K95: 736 | L95: 4500 | M95: 5410 | N95: 4850
A96: Y5003-6 | B96: 1000 | C96: 119 | D96: 989 | E96: 94.8 | F96: 0.85 | G96: 1.8 | H96: 0.7 | I96: 6.0 | J96: 47 | K96: 805 | L96: 4700 | M96: 5610 | N96: 5050
A97: Y5004-6 | B97: 1120 | C97: 132 | D97: 990 | E97: 94.9 | F97: 0.86 | G97: 1.8 | H97: 0.7 | I97: 6.0 | J97: 53 | K97: 870 | L97: 4900 | M97: 5810 | N97: 5250
A98: Y5005-6 | B98: 1250 | C98: 147 | D98: 990 | E98: 95.1 | F98: 0.86 | G98: 1.8 | H98: 0.7 | I98: 6.0 | J98: 60 | K98: 930 | L98: 5200 | M98: 6010 | N98: 5450
A99: Y5601-6 | B99: 1120 | C99: 132 | D99: 990 | E99: 94.9 | F99: 0.86 | G99: 1.8 | H99: 0.7 | I99: 6.5 | J99: 70 | K99: 886 | L99: 6185 | M99: 7000 | N99: 6685
A100: Y5602-6 | B100: 1250 | C100: 147 | D100: 990 | E100: 95.1 | F100: 0.86 | G100: 1.8 | H100: 0.7 | I100: 6.5 | J100: 75 | K100: 972 | L100: 6415 | M100: 7300 | N100: 6915
A101: Y5603-6 | B101: 1400 | C101: 165 | D101: 990 | E101: 95.2 | F101: 0.86 | G101: 1.8 | H101: 0.7 | I101: 6.5 | J101: 82 | K101: 1068 | L101: 6670 | M101: 7500 | N101: 7170
A102: Y5604-6 | B102: 1600 | C102: 188 | D102: 990 | E102: 95.3 | F102: 0.86 | G102: 1.8 | H102: 0.7 | I102: 6.5 | J102: 89 | K102: 1150 | L102: 6870 | M102: 7700 | N102: 7425
A103: Y5605-6 | B103: 1800 | C103: 211 | D103: 990 | E103: 95.4 | F103: 0.86 | G103: 1.8 | H103: 0.7 | I103: 6.5 | J103: 96 | K103: 1210 | L103: 7000 | M103: 7870 | N103: 7680
A104: Y630S1-6 | B104: 1600 | C104: 188 | D104: 991 | E104: 95.3 | F104: 0.86 | G104: 1.8 | H104: 0.7 | I104: 6.5 | J104: 117 | K104: 1192 | L104: 9300 | M104: 10300 | N104: 9900
A105: Y6301-6 | B105: 1800 | C105: 211 | D105: 991 | E105: 95.4 | F105: 0.86 | G105: 1.8 | H105: 0.7 | I105: 6.5 | J105: 132 | K105: 1312 | L105: 9720 | M105: 10720 | N105: 10320
A106: Y6302-6 | B106: 2000 | C106: 234 | D106: 991 | E106: 95.6 | F106: 0.86 | G106: 1.8 | H106: 0.7 | I106: 6.5 | J106: 143 | K106: 1428 | L106: 10550 | M106: 11550 | N106: 11150
A107: Y6303-6 | B107: 2100 | C107: 246 | D107: 991 | E107: 95.6 | F107: 0.86 | G107: 1.8 | H107: 0.7 | I107: 6.5 | J107: 154 | K107: 1544 | L107: 10950 | M107: 11950 | N107: 11550
A108: Y6304-6 | B108: 2240 | C108: 262 | D108: 991 | E108: 95.7 | F108: 0.86 | G108: 1.8 | H108: 0.7 | I108: 6.5 | J108: 165 | K108: 1660 | L108: 11250 | M108: 12250 | N108: 11850
A109: Y6305-6 | B109: 2350 | C109: 275 | D109: 991 | E109: 95.7 | F109: 0.86 | G109: 1.8 | H109: 0.7 | I109: 6.5 | J109: 177 | K109: 1776 | L109: 11500 | M109: 12500 | N109: 12100
A110: Y6306-6 | B110: 2500 | C110: 292 | D110: 991 | E110: 95.7 | F110: 0.86 | G110: 1.8 | H110: 0.7 | I110: 6.5 | J110: 185 | K110: 1892 | L110: 11800 | M110: 12800 | N110: 12400
A111: Y4001-8 | B111: 220 | C111: 29.5 | D111: 741 | E111: 92.1 | F111: 0.78 | G111: 1.8 | H111: 0.8 | I111: 5.5 | J111: 11 | K111: 424 | L111: 2650 | M111: 3100 | N111: 3050
A112: Y4002-8 | B112: 250 | C112: 33.0 | D112: 741 | E112: 92.2 | F112: 0.79 | G112: 1.8 | H112: 0.8 | I112: 5.5 | J112: 12 | K112: 477 | L112: 2760 | M112: 3210 | N112: 3160
A113: Y4003-8 | B113: 280 | C113: 36.9 | D113: 741 | E113: 92.4 | F113: 0.79 | G113: 1.8 | H113: 0.8 | I113: 5.5 | J113: 13 | K113: 529 | L113: 2890 | M113: 3340 | N113: 3290
A114: Y4004-8 | B114: 315 | C114: 40.9 | D114: 741 | E114: 92.7 | F114: 0.80 | G114: 1.8 | H114: 0.8 | I114: 5.5 | J114: 14 | K114: 560 | L114: 3000 | M114: 3470 | N114: 3420
A115: Y4005-8 | B115: 355 | C115: 46.0 | D115: 741 | E115: 92.8 | F115: 0.80 | G115: 1.8 | H115: 0.8 | I115: 5.5 | J115: 15 | K115: 590 | L115: 3120 | M115: 3580 | N115: 3530
A116: Y450S2-8 | B116: 315 | C116: 40.9 | D116: 742 | E116: 92.7 | F116: 0.80 | G116: 1.8 | H116: 0.8 | I116: 5.5 | J116: 16 | K116: 588 | L116: 3140 | M116: 3940 | N116: 3620
A117: Y450S1-8 | B117: 355 | C117: 46.0 | D117: 742 | E117: 92.8 | F117: 0.80 | G117: 1.8 | H117: 0.8 | I117: 5.5 | J117: 17 | K117: 656 | L117: 3290 | M117: 4090 | N117: 3770
A118: Y4501-8 | B118: 400 | C118: 51.7 | D118: 742 | E118: 93.0 | F118: 0.80 | G118: 1.8 | H118: 0.8 | I118: 5.5 | J118: 18 | K118: 731 | L118: 3340 | M118: 4140 | N118: 3820
A119: Y4502-8 | B119: 450 | C119: 57.4 | D119: 742 | E119: 93.1 | F119: 0.81 | G119: 1.8 | H119: 0.8 | I119: 5.5 | J119: 19 | K119: 813 | L119: 3470 | M119: 4270 | N119: 3950
A120: Y4503-8 | B120: 500 | C120: 63.4 | D120: 742 | E120: 93.7 | F120: 0.81 | G120: 1.8 | H120: 0.8 | I120: 5.5 | J120: 20 | K120: 850 | L120: 3590 | M120: 4400 | N120: 4050
A121: Y4504-8 | B121: 560 | C121: 70.1 | D121: 742 | E121: 93.8 | F121: 0.82 | G121: 1.8 | H121: 0.8 | I121: 5.5 | J121: 21 | K121: 920 | L121: 3720 | M121: 4530 | N121: 4200
A122: Y500S1-8 | B122: 500 | C122: 63.4 | D122: 742 | E122: 93.7 | F122: 0.81 | G122: 1.8 | H122: 0.8 | I122: 5.5 | J122: 30 | K122: 894 | L122: 4000 | M122: 4910 | N122: 4350
A123: Y5001-8 | B123: 560 | C123: 70.1 | D123: 742 | E123: 93.8 | F123: 0.82 | G123: 1.8 | H123: 0.8 | I123: 5.5 | J123: 34 | K123: 988 | L123: 4150 | M123: 5060 | N123: 4500
A124: Y5002-8 | B124: 630 | C124: 78.7 | D124: 743 | E124: 93.9 | F124: 0.82 | G124: 1.8 | H124: 0.8 | I124: 5.5 | J124: 38 | K124: 1098 | L124: 4350 | M124: 5260 | N124: 4700
A125: Y5003-8 | B125: 710 | C125: 88.6 | D125: 744 | E125: 94.0 | F125: 0.82 | G125: 1.8 | H125: 0.8 | I125: 5.5 | J125: 42 | K125: 1222 | L125: 4500 | M125: 5410 | N125: 4850
A126: Y5004-8 | B126: 800 | C126: 97.3 | D126: 744 | E126: 94.2 | F126: 0.84 | G126: 1.8 | H126: 0.8 | I126: 5.5 | J126: 46 | K126: 1245 | L126: 4650 | M126: 5560 | N126: 5000
A127: Y5005-8 | B127: 900 | C127: =B127/6/F127/E127/1.732*100 -> 109 | D127: 744 | E127: 94.3 | F127: 0.84 | G127: 1.8 | H127: 0.8 | I127: 5.5 | J127: 50 | K127: 1270 | L127: 4800 | M127: 5710 | N127: 5150
A128: Y5601-8 | B128: 800 | C128: 97.3 | D128: 743 | E128: 94.2 | F128: 0.84 | G128: 1.8 | H128: 0.7 | I128: 6.0 | J128: 87 | K128: 1357 | L128: 6130 | M128: 7100 | N128: 6630
A129: Y5602-8 | B129: 900 | C129: 109 | D129: 743 | E129: 94.3 | F129: 0.84 | G129: 1.8 | H129: 0.7 | I129: 6.0 | J129: 92 | K129: 1505 | L129: 6325 | M129: 7250 | N129: 6825
A130: Y5603-8 | B130: 1000 | C130: 121 | D130: 743 | E130: 94.4 | F130: 0.84 | G130: 1.8 | H130: 0.7 | I130: 6.0 | J130: 102 | K130: 1650 | L130: 6473 | M130: 7330 | N130: 6973
A131: Y5604-8 | B131: 1120 | C131: 136 | D131: 743 | E131: 94.5 | F131: 0.84 | G131: 1.8 | H131: 0.7 | I131: 6.0 | J131: 112 | K131: 1720 | L131: 6620 | M131: 7410 | N131: 7121
A132: Y5605-8 | B132: 1250 | C132: 151 | D132: 743 | E132: 94.7 | F132: 0.84 | G132: 1.8 | H132: 0.7 | I132: 6.0 | J132: 122 | K132: 1810 | L132: 6770 | M132: 7490 | N132: 7269
A133: Y6301-8 | B133: 1120 | C133: 136 | D133: 744 | E133: 94.5 | F133: 0.84 | G133: 1.8 | H133: 0.7 | I133: 6.0 | J133: 137 | K133: 1820 | L133: 9620 | M133: 10620 | N133: 10220
A134: Y6302-8 | B134: 1250 | C134: 151 | D134: 744 | E134: 94.7 | F134: 0.84 | G134: 1.8 | H134: 0.7 | I134: 6.0 | J134: 151 | K134: 2001 | L134: 10200 | M134: 11200 | N134: 10800
A135: Y6303-8 | B135: 1400 | C135: 169 | D135: 744 | E135: 94.8 | F135: 0.84 | G135: 1.8 | H135: 0.7 | I135: 6.0 | J135: 160 | K135: 2204 | L135: 10570 | M135: 11570 | N135: 11170
A136: Y6304-8 | B136: 1600 | C136: 193 | D136: 744 | E136: 94.9 | F136: 0.84 | G136: 1.8 | H136: 0.7 | I136: 6.0 | J136: 168 | K136: 2468 | L136: 10920 | M136: 11920 | N136: 11520
A137: Y6305-8 | B137: 1800 | C137: 217 | D137: 744 | E137: 95.0 | F137: 0.84 | G137: 1.8 | H137: 0.7 | I137: 6.0 | J137: 176 | K137: 2700 | L137: 11270 | M137: 12250 | N137: 11850
A138: Y6306-8 | B138: 2000 | C138: 241 | D138: 744 | E138: 95.2 | F138: 0.84 | G138: 1.8 | H138: 0.7 | I138: 6.0 | J138: 182 | K138: 2940 | L138: 11620 | M138: 12550 | N138: 12150
A139: Y4003-10 | B139: 220 | C139: 30.1 | D139: 593 | E139: 91.3 | F139: 0.77 | G139: 1.8 | H139: 0.8 | I139: 5.5 | J139: 13 | K139: 573 | L139: 2920 | M139: 3370 | N139: 3320
A140: Y4004-10 | B140: 250 | C140: 33.7 | D140: 593 | E140: 91.5 | F140: 0.78 | G140: 1.8 | H140: 0.8 | I140: 5.5 | J140: 14 | K140: 595 | L140: 3000 | M140: 3450 | N140: 3400
A141: Y4005-10 | B141: 280 | C141: 37.7 | D141: 593 | E141: 91.7 | F141: 0.78 | G141: 1.8 | H141: 0.8 | I141: 5.5 | J141: 15 | K141: 617 | L141: 3080 | M141: 3530 | N141: 3470
A142: Y450S3-10 | B142: 220 | C142: 30.1 | D142: 592 | E142: 91.3 | F142: 0.77 | G142: 1.8 | H142: 0.8 | I142: 5.5 | J142: 19 | K142: 729 | L142: 3060 | M142: 3860 | N142: 3540
A143: Y450S2-10 | B143: 250 | C143: 33.7 | D143: 592 | E143: 91.5 | F143: 0.78 | G143: 1.8 | H143: 0.8 | I143: 5.5 | J143: 20 | K143: 820 | L143: 3140 | M143: 3940 | N143: 3620
A144: Y450S1-10 | B144: 280 | C144: 37.7 | D144: 592 | E144: 91.7 | F144: 0.78 | G144: 1.8 | H144: 0.8 | I144: 5.5 | J144: 22 | K144: 910 | L144: 3270 | M144: 4070 | N144: 3750
A145: Y4501-10 | B145: 315 | C145: 41.8 | D145: 592 | E145: 91.9 | F145: 0.79 | G145: 1.8 | H145: 0.8 | I145: 5.5 | J145: 24 | K145: 1014 | L145: 3330 | M145: 4130 | N145: 3810
A146: Y4502-10 | B146: 355 | C146: 47.0 | D146: 592 | E146: 92.1 | F146: 0.79 | G146: 1.8 | H146: 0.8 | I146: 5.5 | J146: 25 | K146: 1131 | L146: 3450 | M146: 4250 | N146: 3930
A147: Y4503-10 | B147: 400 | C147: 52.0 | D147: 592 | E147: 92.6 | F147: 0.80 | G147: 1.8 | H147: 0.8 | I147: 5.5 | J147: 26 | K147: 1200 | L147: 3570 | M147: 4370 | N147: 4050
A148: Y4504-10 | B148: 450 | C148: 58.4 | D148: 592 | E148: 92.7 | F148: 0.80 | G148: 1.8 | H148: 0.8 | I148: 5.5 | J148: 27 | K148: 1280 | L148: 3690 | M148: 4490 | N148: 4170
A149: Y500S2-10 | B149: 400 | C149: 52.0 | D149: 592 | E149: 92.6 | F149: 0.80 | G149: 1.8 | H149: 0.8 | I149: 5.5 | J149: 36 | K149: 1261 | L149: 4000 | M149: 4910 | N149: 4350
A150: Y500S1-10 | B150: 450 | C150: 58.4 | D150: 593 | E150: 92.7 | F150: 0.80 | G150: 1.8 | H150: 0.8 | I150: 5.5 | J150: 38 | K150: 1404 | L150: 4150 | M150: 5060 | N150: 4500
A151: Y5001-10 | B151: 500 | C151: 64.7 | D151: 594 | E151: 93.0 | F151: 0.80 | G151: 1.8 | H151: 0.8 | I151: 5.5 | J151: 42 | K151: 1544 | L151: 4300 | M151: 5210 | N151: 4650
A152: Y5002-10 | B152: 560 | C152: 72.4 | D152: 594 | E152: 93.1 | F152: 0.80 | G152: 1.8 | H152: 0.8 | I152: 5.5 | J152: 45 | K152: 1711 | L152: 4450 | M152: 5315 | N152: 4800
A153: Y5003-10 | B153: 630 | C153: 81.3 | D153: 595 | E153: 93.2 | F153: 0.80 | G153: 1.8 | H153: 0.8 | I153: 5.5 | J153: 52 | K153: 1902 | L153: 4650 | M153: 5500 | N153: 5000
A154: Y5004-10 | B154: 710 | C154: 89.2 | D154: 593 | E154: 93.4 | F154: 0.82 | G154: 1.8 | H154: 0.8 | I154: 5.5 | J154: 55 | K154: 2030 | L154: 4850 | M154: 5685 | N154: 5185
A155: Y5005-10 | B155: 800 | C155: 100 | D155: 593 | E155: 93.7 | F155: 0.82 | G155: 1.8 | H155: 0.8 | I155: 5.5 | J155: 59 | K155: 2110 | L155: 5050 | M155: 5870 | N155: 5370
A156: Y5601-10 | B156: 710 | C156: 89.2 | D156: 593 | E156: 93.4 | F156: 0.82 | G156: 1.8 | H156: 0.7 | I156: 6.0 | J156: 79 | K156: 2116 | L156: 6160 | M156: 7100 | N156: 6660
A157: Y5602-10 | B157: 800 | C157: 100 | D157: 593 | E157: 93.7 | F157: 0.82 | G157: 1.8 | H157: 0.7 | I157: 6.0 | J157: 88 | K157: 2355 | L157: 6360 | M157: 7220 | N157: 6860
A158: Y5603-10 | B158: 900 | C158: 113 | D158: 593 | E158: 93.8 | F158: 0.82 | G158: 1.8 | H158: 0.7 | I158: 6.0 | J158: 93 | K158: 2615 | L158: 6570 | M158: 7510 | N158: 7070
A159: Y5604-10 | B159: 1000 | C159: 125 | D159: 593 | E159: 93.9 | F159: 0.82 | G159: 1.8 | H159: 0.7 | I159: 6.0 | J159: 98 | K159: 2800 | L159: 6770 | M159: 7800 | N159: 7360
A160: Y5605-10 | B160: 1120 | C160: 140 | D160: 593 | E160: 94.1 | F160: 0.82 | G160: 1.8 | H160: 0.7 | I160: 6.0 | J160: 103 | K160: 2850 | L160: 6980 | M160: 8090 | N160: 7650
A161: Y6301-10 | B161: 1000 | C161: 125 | D161: 594 | E161: 93.9 | F161: 0.82 | G161: 1.8 | H161: 0.7 | I161: 6.0 | J161: 140 | K161: 2870 | L161: 9620 | M161: 10620 | N161: 10220
A162: Y6302-10 | B162: 1120 | C162: 140 | D162: 594 | E162: 94.1 | F162: 0.82 | G162: 1.8 | H162: 0.7 | I162: 6.0 | J162: 152 | K162: 3170 | L162: 10200 | M162: 11200 | N162: 10800
A163: Y6303-10 | B163: 1250 | C163: 155 | D163: 594 | E163: 94.4 | F163: 0.82 | G163: 1.8 | H163: 0.7 | I163: 6.0 | J163: 167 | K163: 3489 | L163: 10570 | M163: 11570 | N163: 11170
A164: Y6304-10 | B164: 1400 | C164: 174 | D164: 594 | E164: 94.5 | F164: 0.82 | G164: 1.8 | H164: 0.7 | I164: 6.0 | J164: 175 | K164: 3850 | L164: 10930 | M164: 11930 | N164: 11530
A165: Y6305-10 | B165: 1600 | C165: 198 | D165: 594 | E165: 94.6 | F165: 0.82 | G165: 1.8 | H165: 0.7 | I165: 6.0 | J165: 183 | K165: 4211 | L165: 11200 | M165: 12290 | N165: 11890
A166: Y6306-10 | B166: 1800 | C166: 223 | D166: 594 | E166: 94.7 | F166: 0.82 | G166: 1.8 | H166: 0.7 | I166: 6.0 | J166: 191 | K166: 4572 | L166: 11550 | M166: 12650 | N166: 12250
A167: Y4501-12 | B167: 220 | C167: 32.0 | D167: 494 | E167: 90.6 | F167: 0.73 | G167: 1.8 | H167: 0.8 | I167: 5.5 | J167: 24 | K167: 1135 | L167: 3340 | M167: 4140 | N167: 3820
A168: Y4502-12 | B168: 250 | C168: 36.3 | D168: 494 | E168: 90.9 | F168: 0.73 | G168: 1.8 | H168: 0.8 | I168: 5.5 | J168: 26 | K168: 1277 | L168: 3410 | M168: 4210 | N168: 3890
A169: Y4503-12 | B169: 280 | C169: 39.6 | D169: 494 | E169: 91.9 | F169: 0.74 | G169: 1.8 | H169: 0.8 | I169: 5.5 | J169: 28 | K169: 1400 | L169: 3480 | M169: 4280 | N169: 3960
A170: Y4504-12 | B170: 315 | C170: 43.9 | D170: 494 | E170: 92.1 | F170: 0.75 | G170: 1.8 | H170: 0.8 | I170: 5.5 | J170: 30 | K170: 1550 | L170: 3550 | M170: 4350 | N170: 4030
A171: Y500S2-12 | B171: 280 | C171: 39.6 | D171: 493 | E171: 91.9 | F171: 0.74 | G171: 1.8 | H171: 0.8 | I171: 5.5 | J171: 40 | K171: 1418 | L171: 4000 | M171: 4900 | N171: 4350
A172: Y500S1-12 | B172: 315 | C172: 43.9 | D172: 493 | E172: 92.1 | F172: 0.75 | G172: 1.8 | H172: 0.8 | I172: 5.5 | J172: 42 | K172: 1580 | L172: 4100 | M172: 5000 | N172: 4450
A173: Y5001-12 | B173: 355 | C173: 49.3 | D173: 494 | E173: 92.3 | F173: 0.75 | G173: 1.8 | H173: 0.8 | I173: 5.5 | J173: 43 | K173: 1764 | L173: 4250 | M173: 5150 | N173: 4600
A174: Y5002-12 | B174: 400 | C174: 55.4 | D174: 494 | E174: 92.6 | F174: 0.75 | G174: 1.8 | H174: 0.8 | I174: 5.5 | J174: 47 | K174: 1967 | L174: 4400 | M174: 5300 | N174: 4750
A175: Y5003-12 | B175: 450 | C175: 62.3 | D175: 495 | E175: 92.7 | F175: 0.75 | G175: 1.8 | H175: 0.8 | I175: 5.5 | J175: 50 | K175: 2191 | L175: 4550 | M175: 5450 | N175: 4900
A176: Y5004-12 | B176: 500 | C176: 65.4 | D176: 495 | E176: 93.1 | F176: 0.79 | G176: 1.8 | H176: 0.8 | I176: 5.5 | J176: 53 | K176: 2385 | L176: 4700 | M176: 5600 | N176: 5050
A177: Y5005-12 | B177: 560 | C177: 73.2 | D177: 495 | E177: 93.2 | F177: 0.79 | G177: 1.8 | H177: 0.8 | I177: 5.5 | J177: 56 | K177: 2550 | L177: 4850 | M177: 5750 | N177: 5200
A178: Y5601-12 | B178: 500 | C178: 65.4 | D178: 495 | E178: 93.1 | F178: 0.79 | G178: 1.8 | H178: 0.7 | I178: 6.0 | J178: 103 | K178: 2411 | L178: 6160 | M178: 7060 | N178: 6600
A179: Y5602-12 | B179: 560 | C179: 73.2 | D179: 495 | E179: 93.2 | F179: 0.79 | G179: 1.8 | H179: 0.7 | I179: 6.0 | J179: 114 | K179: 2673 | L179: 6360 | M179: 7310 | N179: 6860
A180: Y5603-12 | B180: 630 | C180: 82.2 | D180: 495 | E180: 93.3 | F180: 0.79 | G180: 1.8 | H180: 0.7 | I180: 6.0 | J180: 127 | K180: 2974 | L180: 6570 | M180: 7430 | N180: 7070
A181: Y5604-12 | B181: 710 | C181: 92.6 | D181: 495 | E181: 93.4 | F181: 0.79 | G181: 1.8 | H181: 0.7 | I181: 6.0 | J181: 139 | K181: 3250 | L181: 6780 | M181: 7550 | N181: 7280
A182: Y5605-12 | B182: 800 | C182: 104 | D182: 495 | E182: 93.7 | F182: 0.79 | G182: 1.8 | H182: 0.7 | I182: 6.0 | J182: 152 | K182: 3340 | L182: 6990 | M182: 7670 | N182: 7490
A183: Y6301-12 | B183: 710 | C183: 92.6 | D183: 495 | E183: 93.4 | F183: 0.79 | G183: 1.8 | H183: 0.7 | I183: 6.0 | J183: 191 | K183: 3312 | L183: 9600 | M183: 11600 | N183: 10200
A184: Y6302-12 | B184: 800 | C184: 104 | D184: 495 | E184: 93.7 | F184: 0.79 | G184: 1.8 | H184: 0.7 | I184: 6.0 | J184: 208 | K184: 3688 | L184: 10050 | M184: 11050 | N184: 10650
A185: Y6303-12 | B185: 900 | C185: 117 | D185: 495 | E185: 93.8 | F185: 0.79 | G185: 1.8 | H185: 0.7 | I185: 6.0 | J185: 227 | K185: 4098 | L185: 10450 | M185: 11450 | N185: 11050
A186: Y6304-12 | B186: 1000 | C186: 130 | D186: 495 | E186: 93.9 | F186: 0.79 | G186: 1.8 | H186: 0.7 | I186: 6.0 | J186: 239 | K186: 4502 | L186: 10820 | M186: 11820 | N186: 11420
A187: Y6305-12 | B187: 1120 | C187: 145 | D187: 495 | E187: 94.0 | F187: 0.79 | G187: 1.8 | H187: 0.7 | I187: 6.0 | J187: 251 | K187: 4906 | L187: 11190 | M187: 12190 | N187: 11790
A188: Y6306-12 | B188: 1250 | C188: =B188/6/F188/E188/1.732*100 -> 162 | D188: 495 | E188: 94.2 | F188: 0.79 | G188: 1.8 | H188: 0.7 | I188: 6.0 | J188: 263 | K188: 5300 | L188: 11480 | M188: 12560 | N188: 12160
A190: 注：表中重量仅供参考

Sheet Y、YKS、YL 10KV
A1: Y、YKS、YL系列（10kV）高压三相异步电动机技术数据
A2: 型号 | B2: 额定功率（kW） | C2: 定子电流（A） | D2: 额定转速（r/min） | E2: 效率（%） | F2: 功率因数（cosψ） | G2: 最大转矩额定转矩 | H2: 堵转转矩额定转矩 | I2: 堵转电流额定电流 | J2: 电动机转动惯量 | L2: 概量（kg)
J3: 电机 Jm （kg·m2） | K3: 允许负载 J (kg·m2） | L3: Y | M3: YKS | N3: YL
A4: Y4001-2 | B4: 220 | C4: =B4/1.732/10/E4/F4*100 -> 16.1 | D4: 2970 | E4: 91.9 | F4: 0.86 | G4: 1.8 | H4: 0.6 | I4: 7.0 | J4: 3.5 | K4: 25 | L4: 2600 | M4: 3250 | N4: 3000
A5: Y4002-2 | B5: 250 | C5: =B5/1.732/10/E5/F5*100 -> 18.2 | D5: 2970 | E5: 92.1 | F5: 0.86 | G5: 1.8 | H5: 0.6 | I5: 7.0 | J5: 3.55 | K5: 25.5 | L5: 2630 | M5: 3280 | N5: 3030
A6: Y4003-2 | B6: 280 | C6: 20.4 | D6: 2970 | E6: 92.3 | F6: 0.86 | G6: 1.8 | H6: 0.6 | I6: 7.0 | J6: 3.6 | K6: 26 | L6: 2650 | M6: 3300 | N6: 3050
A7: Y4004-2 | B7: 315 | C7: 22.8 | D7: 2972 | E7: 92.7 | F7: 0.86 | G7: 1.8 | H7: 0.6 | I7: 7.0 | J7: 3.7 | K7: 26.8 | L7: 2680 | M7: 3330 | N7: 3080
A8: Y4005-2 | B8: 355 | C8: 25.3 | D8: 2972 | E8: 93.1 | F8: 0.87 | G8: 1.8 | H8: 0.6 | I8: 7.0 | J8: 3.75 | K8: 27.5 | L8: 2720 | M8: 3370 | N8: 3120
A9: Y4006-2 | B9: 400 | C9: 28.4 | D9: 2972 | E9: 93.4 | F9: 0.87 | G9: 1.8 | H9: 0.6 | I9: 7.0 | J9: 3.8 | K9: 28.4 | L9: 2760 | M9: 3410 | N9: 3160
A10: Y4007-2 | B10: 450 | C10: 31.9 | D10: 2972 | E10: 93.6 | F10: 0.87 | G10: 1.8 | H10: 0.6 | I10: 7.0 | J10: 3.9 | K10: 29.2 | L10: 2780 | M10: 3430 | N10: 3180
A11: Y450S6-2 | B11: 220 | C11: 16.1 | D11: 2973 | E11: 91.9 | F11: 0.86 | G11: 1.8 | H11: 0.6 | I11: 7.0 | J11: 4 | K11: 30 | L11: 2785 | M11: 3535 | N11: 3200
A12: Y450S5-2 | B12: 250 | C12: 18.2 | D12: 2973 | E12: 92.1 | F12: 0.86 | G12: 1.8 | H12: 0.6 | I12: 7.0 | J12: 4.5 | K12: 31.1 | L12: 2785 | M12: 3550 | N12: 3230
A13: Y450S4-2 | B13: 280 | C13: 20.4 | D13: 2975 | E13: 92.3 | F13: 0.86 | G13: 1.8 | H13: 0.6 | I13: 7.0 | J13: 5.3 | K13: 31.8 | L13: 2860 | M13: 3600 | N13: 3280
A14: Y450S3-2 | B14: 315 | C14: 22.8 | D14: 2975 | E14: 92.7 | F14: 0.86 | G14: 1.8 | H14: 0.6 | I14: 7.0 | J14: 6.0 | K14: 32.5 | L14: 2960 | M14: 3690 | N14: 3370
A15: Y450S2-2 | B15: 355 | C15: 25.3 | D15: 2977 | E15: 93.1 | F15: 0.87 | G15: 1.8 | H15: 0.6 | I15: 7.0 | J15: 6.4 | K15: 34.3 | L15: 3030 | M15: 3760 | N15: 3440
A16: Y450S1-2 | B16: 400 | C16: 28.4 | D16: 2977 | E16: 93.4 | F16: 0.87 | G16: 1.8 | H16: 0.6 | I16: 7.0 | J16: 7.5 | K16: 35.1 | L16: 3130 | M16: 3850 | N16: 3540
A17: Y4501-2 | B17: 450 | C17: 31.9 | D17: 2979 | E17: 93.6 | F17: 0.87 | G17: 1.8 | H17: 0.6 | I17: 7.0 | J17: 8.4 | K17: 37.2 | L17: 3210 | M17: 3890 | N17: 3580
A18: Y4502-2 | B18: 500 | C18: 35.4 | D18: 2979 | E18: 93.7 | F18: 0.87 | G18: 1.8 | H18: 0.6 | I18: 7.0 | J18: 9.0 | K18: 41.2 | L18: 3300 | M18: 3970 | N18: 3660
A19: Y4503-2 | B19: 560 | C19: 39.6 | D19: 2980 | E19: 93.9 | F19: 0.87 | G19: 1.8 | H19: 0.6 | I19: 7.0 | J19: 9.7 | K19: 45.2 | L19: 3380 | M19: 4200 | N19: 3890
A20: Y4504-2 | B20: 630 | C20: 44.5 | D20: 2980 | E20: 94.0 | F20: 0.87 | G20: 1.8 | H20: 0.6 | I20: 7.0 | J20: 10.3 | K20: 50.1 | L20: 3650 | M20: 4360 | N20: 4050
A21: Y4505-2 | B21: 710 | C21: 49.5 | D21: 2980 | E21: 94.1 | F21: 0.88 | G21: 1.8 | H21: 0.6 | I21: 7.0 | J21: 11 | K21: 55.1 | L21: 3730 | M21: 4520 | N21: 4210
A22: Y4506-2 | B22: 800 | C22: 55.7 | D22: 2980 | E22: 94.3 | F22: 0.88 | G22: 1.8 | H22: 0.6 | I22: 7.0 | J22: 11.7 | K22: 60.2 | L22: 3820 | M22: 4680 | N22: 4400
A23: Y5001-2 | B23: 710 | C23: 49.5 | D23: 2981 | E23: 94.1 | F23: 0.88 | G23: 1.8 | H23: 0.6 | I23: 7.0 | J23: 13.7 | K23: 68.8 | L23: 4150 | M23: 4810 | N23: 4600
A24: Y5002-2 | B24: 800 | C24: 55.7 | D24: 2981 | E24: 94.3 | F24: 0.88 | G24: 1.8 | H24: 0.6 | I24: 7.0 | J24: 14.7 | K24: 75.5 | L24: 4250 | M24: 4910 | N24: 4700
A25: Y5003-2 | B25: 900 | C25: 62.6 | D25: 2981 | E25: 94.4 | F25: 0.88 | G25: 1.8 | H25: 0.6 | I25: 7.0 | J25: 16.7 | K25: 78.4 | L25: 4500 | M25: 5160 | N25: 4900
A26: Y5004-2 | B26: 1000 | C26: 69.4 | D26: 2981 | E26: 94.5 | F26: 0.88 | G26: 1.8 | H26: 0.6 | I26: 7.0 | J26: 17.7 | K26: 90.2 | L26: 4600 | M26: 5260 | N26: 5050
A27: Y5005-2 | B27: 1120 | C27: 77.6 | D27: 2982 | E27: 94.7 | F27: 0.88 | G27: 1.8 | H27: 0.6 | I27: 7.0 | J27: 18.7 | K27: 97.0 | L27: 4700 | M27: 5360 | N27: 5150
A28: Y5006-2 | B28: 1250 | C28: 85.4 | D28: 2982 | E28: 94.9 | F28: 0.89 | G28: 1.8 | H28: 0.6 | I28: 7.0 | J28: 19.7 | K28: 103.8 | L28: 4850 | M28: 5460 | N28: 5250
A29: Y5007-2 | B29: 1400 | C29: 95.5 | D29: 2983 | E29: 95.1 | F29: 0.89 | G29: 1.8 | H29: 0.6 | I29: 7.0 | J29: 20.7 | K29: 110.6 | L29: 5000 | M29: 5560 | N29: 5350
A30: Y5602-2 | B30: 1250 | C30: 85.4 | D30: 2983 | E30: 94.9 | F30: 0.89 | G30: 1.8 | H30: 0.6 | I30: 7.0 | J30: 30.8 | K30: 98.0 | L30: 7750 | M30: 8450 | N30: 8000
A31: Y5603-2 | B31: 1400 | C31: 95.5 | D31: 2983 | E31: 95.1 | F31: 0.89 | G31: 1.8 | H31: 0.6 | I31: 7.0 | J31: 34.7 | K31: 99.0 | L31: 8000 | M31: 8700 | N31: 8400
A32: Y5604-2 | B32: 1600 | C32: 109 | D32: 2983 | E32: 95.2 | F32: 0.89 | G32: 1.8 | H32: 0.6 | I32: 7.0 | J32: 38.8 | K32: 100 | L32: 8250 | M32: 8950 | N32: 8650
A33: Y5605-2 | B33: 1800 | C33: 121 | D33: 2983 | E33: 95.3 | F33: 0.90 | G33: 1.8 | H33: 0.6 | I33: 7.0 | J33: 42.9 | K33: 101 | L33: 8500 | M33: 9200 | N33: 8900
A34: Y5606-2 | B34: 2000 | C34: 134 | D34: 2983 | E34: 95.5 | F34: 0.90 | G34: 1.8 | H34: 0.6 | I34: 7.0 | J34: 47 | K34: 102 | L34: 8750 | M34: 9450 | N34: 9150
A35: Y630S1-2 | B35: 1800 | C35: 121 | D35: 2983 | E35: 95.3 | F35: 0.90 | G35: 1.8 | H35: 0.6 | I35: 7.0 | J35: 39 | K35: 108 | L35: 9250 | M35: 10010 | N35: 9700
A36: Y6301-2 | B36: 2000 | C36: 134 | D36: 2983 | E36: 95.5 | F36: 0.90 | G36: 1.8 | H36: 0.6 | I36: 7.0 | J36: 44 | K36: 110 | L36: 9650 | M36: 10410 | N36: 10000
A37: Y6302-2 | B37: 2100 | C37: 141 | D37: 2984 | E37: 95.6 | F37: 0.90 | G37: 1.8 | H37: 0.6 | I37: 7.0 | J37: 47 | K37: 112 | L37: 9850 | M37: 10810 | N37: 10400
A38: Y6303-2 | B38: 2240 | C38: 150 | D38: 2984 | E38: 95.7 | F38: 0.90 | G38: 1.8 | H38: 0.6 | I38: 7.0 | J38: 51 | K38: 114 | L38: 10500 | M38: 11260 | N38: 10850
A39: Y6304-2 | B39: 2350 | C39: 158 | D39: 2985 | E39: 95.7 | F39: 0.90 | G39: 1.8 | H39: 0.6 | I39: 7.0 | J39: 57 | K39: 118 | L39: 10900 | M39: 11710 | N39: 11300
A40: Y6305-2 | B40: 2500 | C40: 168 | D40: 2985 | E40: 95.7 | F40: 0.90 | G40: 1.8 | H40: 0.6 | I40: 7.0 | J40: 63 | K40: 122 | L40: 11300 | M40: 12160 | N40: 11750
A41: Y6306-2 | B41: 2650 | C41: 178 | D41: 2985 | E41: 95.7 | F41: 0.90 | G41: 1.8 | H41: 0.6 | I41: 7.0 | J41: 69 | K41: 126 | L41: 11700 | M41: 12610 | N41: 12200
A42: Y6307-2 | B42: 2800 | C42: 188 | D42: 2985 | E42: 95.7 | F42: 0.90 | G42: 1.8 | H42: 0.6 | I42: 7.0 | J42: 75 | K42: 130 | L42: 12100 | M42: 13060 | N42: 12650
A43: Y6308-2 | B43: 2900 | C43: 194 | D43: 2985 | E43: 95.7 | F43: 0.90 | G43: 1.8 | H43: 0.6 | I43: 7.0 | J43: 81 | K43: 134 | L43: 12500 | M43: 13510 | N43: 13100
A44: Y6309-2 | B44: 3150 | C44: 211 | D44: 2985 | E44: 95.8 | F44: 0.90 | G44: 1.8 | H44: 0.6 | I44: 7.0 | J44: 87 | K44: 138 | L44: 12900 | M44: 13960 | N44: 13550
A45: Y4001-4 | B45: 220 | C45: 16.3 | D45: 1475 | E45: 91.9 | F45: 0.85 | G45: 1.8 | H45: 0.7 | I45: 7.0 | J45: 8 | K45: 75 | L45: 2550 | M45: 2950 | N45: 2750
A46: Y4002-4 | B46: 250 | C46: 18.4 | D46: 1475 | E46: 92.1 | F46: 0.85 | G46: 1.8 | H46: 0.7 | I46: 7.0 | J46: 8.1 | K46: 76 | L46: 2570 | M46: 2970 | N46: 2770
A47: Y4003-4 | B47: 280 | C47: 20.6 | D47: 1475 | E47: 92.2 | F47: 0.85 | G47: 1.8 | H47: 0.7 | I47: 7.0 | J47: 8.2 | K47: 77 | L47: 2600 | M47: 3100 | N47: 2900
A48: Y4004-4 | B48: 315 | C48: 23.1 | D48: 1475 | E48: 92.5 | F48: 0.85 | G48: 1.8 | H48: 0.7 | I48: 7.0 | J48: 8.4 | K48: 78 | L48: 2620 | M48: 3120 | N48: 2920
A49: Y4005-4 | B49: 355 | C49: 25.7 | D49: 1475 | E49: 92.6 | F49: 0.86 | G49: 1.8 | H49: 0.7 | I49: 7.0 | J49: 8.5 | K49: 79 | L49: 2650 | M49: 3150 | N49: 2950
A50: Y4006-4 | B50: 400 | C50: 28.9 | D50: 1476 | E50: 92.8 | F50: 0.86 | G50: 1.8 | H50: 0.7 | I50: 7.0 | J50: 8.6 | K50: 80 | L50: 2680 | M50: 3180 | N50: 2980
A51: Y4007-4 | B51: 450 | C51: 32.4 | D51: 1476 | E51: 93.2 | F51: 0.86 | G51: 1.8 | H51: 0.7 | I51: 7.0 | J51: 8.8 | K51: 81 | L51: 2700 | M51: 3200 | N51: 3000
A52: Y450S6-4 | B52: 220 | C52: 16.3 | D52: 1477 | E52: 91.9 | F52: 0.85 | G52: 1.8 | H52: 0.7 | I52: 7.0 | J52: 9.0 | K52: 78.0 | L52: 2700 | M52: 3365 | N52: 3030
A53: Y450S5-4 | B53: 250 | C53: 18.4 | D53: 1477 | E53: 92.1 | F53: 0.85 | G53: 1.8 | H53: 0.7 | I53: 7.0 | J53: 9.5 | K53: 87.0 | L53: 2700 | M53: 3460 | N53: 3125
A54: Y450S4-4 | B54: 280 | C54: 20.6 | D54: 1478 | E54: 92.2 | F54: 0.85 | G54: 1.8 | H54: 0.7 | I54: 7.0 | J54: 10.2 | K54: 97.0 | L54: 2750 | M54: 3525 | N54: 3190
A55: Y450S3-4 | B55: 315 | C55: 23.1 | D55: 1478 | E55: 92.5 | F55: 0.85 | G55: 1.8 | H55: 0.7 | I55: 7.0 | J55: 10.8 | K55: 107 | L55: 2790 | M55: 3650 | N55: 3270
A56: Y450S2-4 | B56: 355 | C56: 25.7 | D56: 1478 | E56: 92.6 | F56: 0.86 | G56: 1.8 | H56: 0.7 | I56: 7.0 | J56: 12.0 | K56: 119 | L56: 2850 | M56: 3665 | N56: 3330
A57: Y450S1-4 | B57: 400 | C57: 28.9 | D57: 1480 | E57: 92.8 | F57: 0.86 | G57: 1.8 | H57: 0.7 | I57: 7.0 | J57: 12.5 | K57: 132 | L57: 2915 | M57: 3730 | N57: 3395
A58: Y4501-4 | B58: 450 | C58: 32.4 | D58: 1480 | E58: 93.2 | F58: 0.86 | G58: 1.8 | H58: 0.7 | I58: 7.0 | J58: 12.9 | K58: 147 | L58: 3180 | M58: 3995 | N58: 3660
A59: Y4502-4 | B59: 500 | C59: 36.0 | D59: 1482 | E59: 93.3 | F59: 0.86 | G59: 1.8 | H59: 0.7 | I59: 7.0 | J59: 13.4 | K59: 161 | L59: 3180 | M59: 4130 | N59: 3795
A60: Y4503-4 | B60: 560 | C60: 40.2 | D60: 1485 | E60: 93.6 | F60: 0.86 | G60: 1.8 | H60: 0.7 | I60: 7.0 | J60: 13.8 | K60: 178 | L60: 3360 | M60: 4195 | N60: 3860
A61: Y4504-4 | B61: 630 | C61: 45.1 | D61: 1485 | E61: 93.8 | F61: 0.86 | G61: 1.8 | H61: 0.7 | I61: 7.0 | J61: 14.7 | K61: 196 | L61: 3510 | M61: 4275 | N61: 3941
A62: Y4505-4 | B62: 710 | C62: 49.9 | D62: 1485 | E62: 94.4 | F62: 0.87 | G62: 1.8 | H62: 0.7 | I62: 7.0 | J62: 15.6 | K62: 208 | L62: 3190 | M62: 4355 | N62: 4022
A63: Y4506-4 | B63: 800 | C63: 56.1 | D63: 1486 | E63: 94.6 | F63: 0.87 | G63: 1.8 | H63: 0.7 | I63: 7.0 | J63: 16.5 | K63: 214 | L63: 3370 | M63: 4435 | N63: 4103
A64: Y5001-4 | B64: 710 | C64: 49.9 | D64: 1486 | E64: 94.4 | F64: 0.87 | G64: 1.8 | H64: 0.7 | I64: 7.0 | J64: 22.0 | K64: 217 | L64: 4550 | M64: 5510 | N64: 4900
A65: Y5002-4 | B65: 800 | C65: 56.1 | D65: 1487 | E65: 94.6 | F65: 0.87 | G65: 1.8 | H65: 0.7 | I65: 7.0 | J65: 23.0 | K65: 240 | L65: 4600 | M65: 5560 | N65: 4950
A66: Y5003-4 | B66: 900 | C66: 62.4 | D66: 1487 | E66: 94.7 | F66: 0.88 | G66: 1.8 | H66: 0.7 | I66: 7.0 | J66: 25.0 | K66: 265 | L66: 4750 | M66: 5710 | N66: 5100
A67: Y5004-4 | B67: 1000 | C67: 69.2 | D67: 1487 | E67: 94.8 | F67: 0.88 | G67: 1.8 | H67: 0.7 | I67: 7.0 | J67: 27.0 | K67: 289 | L67: 4850 | M67: 5810 | N67: 5200
A68: Y5005-4 | B68: 1120 | C68: 77.4 | D68: 1487 | E68: 94.9 | F68: 0.88 | G68: 1.8 | H68: 0.7 | I68: 7.0 | J68: 29.0 | K68: 317 | L68: 5150 | M68: 6110 | N68: 5500
A69: Y5006-4 | B69: 1250 | C69: =B69/1.732/10/E69/F69*100 -> 85.4 | D69: 1487 | E69: 95.0 | F69: 0.89 | G69: 1.8 | H69: 0.7 | I69: 7.0 | J69: 31.0 | K69: 338 | L69: 5450 | M69: 6410 | N69: 5800
A70: Y5007-4 | B70: 1400 | C70: 95.3 | D70: 1487 | E70: 95.3 | F70: 0.89 | G70: 1.8 | H70: 0.7 | I70: 7.0 | J70: 33.0 | K70: 349 | L70: 5750 | M70: 6710 | N70: 6100
A71: Y5602-4 | B71: 1250 | C71: 85.4 | D71: 1487 | E71: 95.0 | F71: 0.89 | G71: 1.8 | H71: 0.7 | I71: 7.0 | J71: 40.0 | K71: 347 | L71: 6225 | M71: 7245 | N71: 6600
A72: Y5603-4 | B72: 1400 | C72: 95.3 | D72: 1487 | E72: 95.3 | F72: 0.89 | G72: 1.8 | H72: 0.7 | I72: 7.0 | J72: 43.0 | K72: 379 | L72: 6720 | M72: 7740 | N72: 7100
A73: Y5604-4 | B73: 1600 | C73: 109 | D73: 1487 | E73: 95.4 | F73: 0.89 | G73: 1.8 | H73: 0.7 | I73: 7.0 | J73: 46.0 | K73: 421 | L73: 7150 | M73: 8170 | N73: 7550
A74: Y5605-4 | B74: 1800 | C74: 122 | D74: 1487 | E74: 95.5 | F74: 0.89 | G74: 1.8 | H74: 0.7 | I74: 7.0 | J74: 49.0 | K74: 453 | L74: 7650 | M74: 8600 | N74: 8000
A75: Y5606-4 | B75: 2000 | C75: 136 | D75: 1487 | E75: 95.7 | F75: 0.89 | G75: 1.8 | H75: 0.7 | I75: 7.0 | J75: 52.0 | K75: 488 | L75: 8100 | M75: 9030 | N75: 8420
A76: Y630S1-4 | B76: 1800 | C76: 122 | D76: 1488 | E76: 95.5 | F76: 0.89 | G76: 1.8 | H76: 0.6 | I76: 7.0 | J76: 86.0 | K76: 460 | L76: 9250 | M76: 10360 | N76: 9850
A77: Y6301-4 | B77: 2000 | C77: 136 | D77: 1488 | E77: 95.7 | F77: 0.89 | G77: 1.8 | H77: 0.6 | I77: 7.0 | J77: 91.0 | K77: 498 | L77: 9700 | M77: 10810 | N77: 10310
A78: Y6302-4 | B78: 2100 | C78: 142 | D78: 1488 | E78: 95.7 | F78: 0.89 | G78: 1.8 | H78: 0.6 | I78: 7.0 | J78: 93.0 | K78: 520 | L78: 10100 | M78: 11260 | N78: 10750
A79: Y6303-4 | B79: 2240 | C79: 152 | D79: 1488 | E79: 95.8 | F79: 0.89 | G79: 1.8 | H79: 0.6 | I79: 7.0 | J79: 96.0 | K79: 540 | L79: 10600 | M79: 11710 | N79: 11210
A80: Y6304-4 | B80: 2350 | C80: 159 | D80: 1488 | E80: 95.8 | F80: 0.89 | G80: 1.8 | H80: 0.6 | I80: 7.0 | J80: 98 | K80: 560 | L80: 11200 | M80: 12160 | N80: 11650
A81: Y6305-4 | B81: 2500 | C81: 169 | D81: 1488 | E81: 95.8 | F81: 0.89 | G81: 1.8 | H81: 0.6 | I81: 7.0 | J81: 100 | K81: 580 | L81: 11800 | M81: 12610 | N81: 12000
A82: Y6306-4 | B82: 2650 | C82: 179 | D82: 1488 | E82: 95.8 | F82: 0.89 | G82: 1.8 | H82: 0.6 | I82: 7.0 | J82: 103 | K82: 600 | L82: 12400 | M82: 13060 | N82: 12550
A83: Y6307-4 | B83: 2800 | C83: 190 | D83: 1488 | E83: 95.8 | F83: 0.89 | G83: 1.8 | H83: 0.6 | I83: 7.0 | J83: 105 | K83: 620 | L83: 13000 | M83: 13510 | N83: 13000
A84: Y6308-4 | B84: 2900 | C84: 196 | D84: 1488 | E84: 95.8 | F84: 0.89 | G84: 1.8 | H84: 0.6 | I84: 7.0 | J84: 107 | K84: 640 | L84: 13600 | M84: 13960 | N84: 13450
A85: Y6309-4 | B85: 3150 | C85: 213 | D85: 1488 | E85: 95.9 | F85: 0.89 | G85: 1.8 | H85: 0.6 | I85: 7.0 | J85: 110 | K85: 660 | L85: 14200 | M85: 14410 | N85: 13900
A86: Y4004-6 | B86: 220 | C86: 17.4 | D86: 985 | E86: 91.4 | F86: 0.80 | G86: 1.8 | H86: 0.7 | I86: 6.0 | J86: 11 | K86: 180 | L86: 2700 | M86: 3000 | N86: 2850
A87: Y4005-6 | B87: 250 | C87: 19.7 | D87: 985 | E87: 91.6 | F87: 0.80 | G87: 1.8 | H87: 0.7 | I87: 6.0 | J87: 11.6 | K87: 187 | L87: 2730 | M87: 3030 | N87: 2880
A88: Y4006-6 | B88: 280 | C88: 22.0 | D88: 985 | E88: 91.8 | F88: 0.80 | G88: 1.8 | H88: 0.7 | I88: 6.0 | J88: 12.2 | K88: 195 | L88: 2760 | M88: 3060 | N88: 2910
A89: Y4007-6 | B89: 315 | C89: 24.1 | D89: 985 | E89: 92.1 | F89: 0.82 | G89: 1.8 | H89: 0.7 | I89: 6.0 | J89: 12.8 | K89: 205 | L89: 2800 | M89: 3100 | N89: 2950
A90: Y450S3-6 | B90: 220 | C90: 17.4 | D90: 987 | E90: 91.4 | F90: 0.80 | G90: 1.8 | H90: 0.7 | I90: 6.0 | J90: 13.2 | K90: 210 | L90: 2800 | M90: 3615 | N90: 3280
A91: Y450S2-6 | B91: 250 | C91: 19.7 | D91: 987 | E91: 91.6 | F91: 0.80 | G91: 1.8 | H91: 0.7 | I91: 6.0 | J91: 13.4 | K91: 236 | L91: 2850 | M91: 3665 | N91: 3330
A92: Y450S1-6 | B92: 280 | C92: 22.0 | D92: 987 | E92: 91.8 | F92: 0.80 | G92: 1.8 | H92: 0.7 | I92: 6.0 | J92: 13.6 | K92: 261 | L92: 2950 | M92: 3765 | N92: 3430
A93: Y4501-6 | B93: 315 | C93: 24.1 | D93: 987 | E93: 92.1 | F93: 0.82 | G93: 1.8 | H93: 0.7 | I93: 6.0 | J93: 14.7 | K93: 291 | L93: 3070 | M93: 3885 | N93: 3550
A94: Y4502-6 | B94: 355 | C94: 26.7 | D94: 988 | E94: 92.4 | F94: 0.83 | G94: 1.8 | H94: 0.7 | I94: 6.0 | J94: 15.7 | K94: 324 | L94: 3175 | M94: 3990 | N94: 3655
A95: Y4503-6 | B95: 400 | C95: 30.0 | D95: 988 | E95: 92.6 | F95: 0.83 | G95: 1.8 | H95: 0.7 | I95: 6.0 | J95: 17.7 | K95: 361 | L95: 3295 | M95: 4110 | N95: 3775
A96: Y4504-6 | B96: 450 | C96: 33.7 | D96: 988 | E96: 92.8 | F96: 0.83 | G96: 1.8 | H96: 0.7 | I96: 6.0 | J96: 18.2 | K96: 400 | L96: 3377 | M96: 4190 | N96: 3857
A97: Y4505-6 | B97: 500 | C97: 37.3 | D97: 988 | E97: 93.2 | F97: 0.83 | G97: 1.8 | H97: 0.7 | I97: 6.0 | J97: 19.8 | K97: 420 | L97: 3520 | M97: 4270 | N97: 3939
A98: Y4506-6 | B98: 560 | C98: 41.2 | D98: 988 | E98: 93.5 | F98: 0.84 | G98: 1.8 | H98: 0.7 | I98: 6.0 | J98: 21.9 | K98: 440 | L98: 3690 | M98: 4350 | N98: 4021
A99: Y5001-6 | B99: 500 | C99: 37.3 | D99: 988 | E99: 93.2 | F99: 0.83 | G99: 1.8 | H99: 0.7 | I99: 6.0 | J99: 23.0 | K99: 440 | L99: 4000 | M99: 5510 | N99: 4900
A100: Y5002-6 | B100: 560 | C100: 41.2 | D100: 988 | E100: 93.5 | F100: 0.84 | G100: 1.8 | H100: 0.7 | I100: 6.0 | J100: 25.0 | K100: 486 | L100: 4120 | M100: 5560 | N100: 4950
A101: Y5003-6 | B101: 630 | C101: 46.2 | D101: 988 | E101: 93.8 | F101: 0.84 | G101: 1.8 | H101: 0.7 | I101: 6.0 | J101: 27.0 | K101: 539 | L101: 4280 | M101: 5750 | N101: 5140
A102: Y5004-6 | B102: 710 | C102: 51.9 | D102: 988 | E102: 94.0 | F102: 0.84 | G102: 1.8 | H102: 0.7 | I102: 6.0 | J102: 29.0 | K102: 599 | L102: 4400 | M102: 5890 | N102: 5280
A103: Y5005-6 | B103: 800 | C103: 58.4 | D103: 988 | E103: 94.2 | F103: 0.84 | G103: 1.8 | H103: 0.7 | I103: 6.0 | J103: 31.0 | K103: 664 | L103: 4550 | M103: 6010 | N103: 5400
A104: Y5006-6 | B104: 900 | C104: 64.8 | D104: 989 | E104: 94.4 | F104: 0.85 | G104: 1.8 | H104: 0.7 | I104: 6.0 | J104: 33.0 | K104: 729 | L104: 4700 | M104: 6130 | N104: 5520
A105: Y5007-6 | B105: 1000 | C105: 71.8 | D105: 989 | E105: 94.6 | F105: 0.85 | G105: 1.8 | H105: 0.7 | I105: 6.0 | J105: 35.0 | K105: 794 | L105: 4850 | M105: 6250 | N105: 5640
A106: Y5601-6 | B106: 900 | C106: 64.8 | D106: 989 | E106: 94.4 | F106: 0.85 | G106: 1.8 | H106: 0.7 | I106: 6.0 | J106: 49.0 | K106: 735 | L106: 5710 | M106: 7195 | N106: 6585
A107: Y5602-6 | B107: 1000 | C107: 71.8 | D107: 989 | E107: 94.6 | F107: 0.85 | G107: 1.8 | H107: 0.7 | I107: 6.0 | J107: 53.0 | K107: 805 | L107: 6050 | M107: 7525 | N107: 6915
A108: Y5603-6 | B108: 1120 | C108: 80.2 | D108: 989 | E108: 94.8 | F108: 0.85 | G108: 1.8 | H108: 0.7 | I108: 6.0 | J108: 56.0 | K108: 886 | L108: 6320 | M108: 7780 | N108: 7170
A109: Y5604-6 | B109: 1250 | C109: 88.4 | D109: 989 | E109: 94.9 | F109: 0.86 | G109: 1.8 | H109: 0.7 | I109: 6.0 | J109: 60.0 | K109: 972 | L109: 6600 | M109: 8030 | N109: 7420
A110: Y5605-6 | B110: 1400 | C110: 98.6 | D110: 989 | E110: 95.3 | F110: 0.86 | G110: 1.8 | H110: 0.7 | I110: 6.0 | J110: 64.0 | K110: 1058 | L110: 6880 | M110: 8280 | N110: 7670
A111: Y5606-6 | B111: 1600 | C111: 113 | D111: 989 | E111: 95.4 | F111: 0.86 | G111: 1.8 | H111: 0.7 | I111: 6.0 | J111: 68.0 | K111: 1144 | L111: 7160 | M111: 8530 | N111: 7920
A112: Y6302-6 | B112: 1400 | C112: 98.6 | D112: 989 | E112: 95.3 | F112: 0.86 | G112: 1.8 | H112: 0.6 | I112: 6.0 | J112: 114 | K112: 1068 | L112: 9300 | M112: 10410 | N112: 9900
A113: Y6303-6 | B113: 1600 | C113: 113 | D113: 990 | E113: 95.4 | F113: 0.86 | G113: 1.8 | H113: 0.6 | I113: 6.0 | J113: 121 | K113: 1192 | L113: 9700 | M113: 10810 | N113: 10300
A114: Y6304-6 | B114: 1800 | C114: 127 | D114: 991 | E114: 95.5 | F114: 0.86 | G114: 1.8 | H114: 0.6 | I114: 6.0 | J114: 128 | K114: 1312 | L114: 10500 | M114: 11610 | N114: 11100
A115: Y6305-6 | B115: 2000 | C115: 140 | D115: 991 | E115: 95.6 | F115: 0.86 | G115: 1.8 | H115: 0.6 | I115: 6.0 | J115: 135 | K115: 1432 | L115: 10850 | M115: 12410 | N115: 11900
A116: Y6306-6 | B116: 2100 | C116: 147 | D116: 991 | E116: 95.6 | F116: 0.86 | G116: 1.8 | H116: 0.6 | I116: 6.0 | J116: 142 | K116: 1552 | L116: 11240 | M116: 13210 | N116: 12700
A117: Y6307-6 | B117: 2240 | C117: 157 | D117: 993 | E117: 95.6 | F117: 0.86 | G117: 1.8 | H117: 0.6 | I117: 6.0 | J117: 149 | K117: 1672 | L117: 11650 | M117: 14010 | N117: 13500
A118: Y6308-6 | B118: 2350 | C118: 165 | D118: 993 | E118: 95.6 | F118: 0.86 | G118: 1.8 | H118: 0.6 | I118: 6.0 | J118: 156 | K118: 1792 | L118: 12050 | M118: 14810 | N118: 14300
A119: Y6309-6 | B119: 2500 | C119: 176 | D119: 993 | E119: 95.6 | F119: 0.86 | G119: 1.8 | H119: 0.6 | I119: 6.0 | J119: 163 | K119: 1912 | L119: 12450 | M119: 15610 | N119: 15100
A120: Y4502-8 | B120: 220 | C120: 18.3 | D120: 741 | E120: 91.1 | F120: 0.76 | G120: 1.8 | H120: 0.7 | I120: 6.0 | J120: 16.0 | K120: 423 | L120: 2927 | M120: 3740 | N120: 3407
A121: Y4503-8 | B121: 250 | C121: 20.8 | D121: 741 | E121: 91.3 | F121: 0.76 | G121: 1.8 | H121: 0.7 | I121: 6.0 | J121: 17.0 | K121: 476 | L121: 3241 | M121: 4056 | N121: 3721
A122: Y4504-8 | B122: 280 | C122: 23.2 | D122: 741 | E122: 91.6 | F122: 0.76 | G122: 1.8 | H122: 0.7 | I122: 6.0 | J122: 18.0 | K122: 528 | L122: 3383 | M122: 4198 | N122: 3863
A123: Y4505-8 | B123: 315 | C123: 25.6 | D123: 741 | E123: 92.1 | F123: 0.77 | G123: 1.8 | H123: 0.7 | I123: 6.0 | J123: 19.0 | K123: 575 | L123: 3525 | M123: 4340 | N123: 4005
A124: Y4506-8 | B124: 355 | C124: 28.8 | D124: 741 | E124: 92.4 | F124: 0.77 | G124: 1.8 | H124: 0.7 | I124: 6.0 | J124: 20.0 | K124: 625 | L124: 3615 | M124: 4482 | N124: 4147
A125: Y500S1-8 | B125: 315 | C125: 25.6 | D125: 741 | E125: 92.1 | F125: 0.77 | G125: 1.8 | H125: 0.7 | I125: 6.0 | J125: 22.0 | K125: 588 | L125: 3620 | M125: 5410 | N125: 4800
A126: Y5001-8 | B126: 355 | C126: 28.8 | D126: 742 | E126: 92.4 | F126: 0.77 | G126: 1.8 | H126: 0.7 | I126: 6.0 | J126: 24.0 | K126: 656 | L126: 3800 | M126: 5540 | N126: 4930
A127: Y5002-8 | B127: 400 | C127: 32.0 | D127: 742 | E127: 92.5 | F127: 0.78 | G127: 1.8 | H127: 0.7 | I127: 6.0 | J127: 26.0 | K127: 730 | L127: 4050 | M127: 5660 | N127: 5050
A128: Y5003-8 | B128: 450 | C128: 35.9 | D128: 742 | E128: 92.7 | F128: 0.78 | G128: 1.8 | H128: 0.7 | I128: 6.0 | J128: 28.0 | K128: 812 | L128: 4150 | M128: 5810 | N128: 5200
A129: Y5004-8 | B129: 500 | C129: 39.3 | D129: 742 | E129: 93.1 | F129: 0.79 | G129: 1.8 | H129: 0.7 | I129: 6.0 | J129: 30.0 | K129: 893 | L129: 4550 | M129: 5960 | N129: 5350
A130: Y5005-8 | B130: 560 | C130: 43.9 | D130: 742 | E130: 93.3 | F130: 0.79 | G130: 1.8 | H130: 0.7 | I130: 6.0 | J130: 32.0 | K130: 989 | L130: 4690 | M130: 6110 | N130: 5500
A131: Y5006-8 | B131: 630 | C131: 47.3 | D131: 742 | E131: 93.8 | F131: 0.82 | G131: 1.8 | H131: 0.7 | I131: 6.0 | J131: 34.0 | K131: 1050 | L131: 4900 | M131: 6260 | N131: 5650
A132: Y5007-8 | B132: 710 | C132: 53.2 | D132: 743 | E132: 94.0 | F132: 0.82 | G132: 1.8 | H132: 0.7 | I132: 6.0 | J132: 36.0 | K132: 1090 | L132: 5070 | M132: 6410 | N132: 5800
A133: Y5601-8 | B133: 630 | C133: =B133/1.732/10/E133/F133*100 -> 47.3 | D133: 743 | E133: 93.8 | F133: 0.82 | G133: 1.8 | H133: 0.7 | I133: 6.0 | J133: 56.0 | K133: 1098 | L133: 6325 | M133: 7345 | N133: 6825
A134: Y5602-8 | B134: 710 | C134: 53.2 | D134: 743 | E134: 94.0 | F134: 0.82 | G134: 1.8 | H134: 0.7 | I134: 6.0 | J134: 60.0 | K134: 1221 | L134: 6470 | M134: 7490 | N134: 6970
A135: Y5603-8 | B135: 800 | C135: 59.8 | D135: 744 | E135: 94.2 | F135: 0.82 | G135: 1.8 | H135: 0.7 | I135: 6.0 | J135: 63.0 | K135: 1357 | L135: 6620 | M135: 7640 | N135: 7120
A136: Y5604-8 | B136: 900 | C136: 67.2 | D136: 744 | E136: 94.3 | F136: 0.82 | G136: 1.8 | H136: 0.7 | I136: 6.0 | J136: 67.0 | K136: 1505 | L136: 6760 | M136: 7780 | N136: 7260
A137: Y5605-8 | B137: 1000 | C137: 73.6 | D137: 744 | E137: 94.5 | F137: 0.83 | G137: 1.8 | H137: 0.7 | I137: 6.0 | J137: 71.0 | K137: 1620 | L137: 6900 | M137: 7920 | N137: 7400
A138: Y5606-8 | B138: 1120 | C138: 82.3 | D138: 744 | E138: 94.7 | F138: 0.83 | G138: 1.8 | H138: 0.7 | I138: 6.0 | J138: 75.0 | K138: 1750 | L138: 7100 | M138: 8060 | N138: 7540
A139: Y6304-8 | B139: 1000 | C139: 73.6 | D139: 744 | E139: 94.5 | F139: 0.83 | G139: 1.8 | H139: 0.7 | I139: 6.0 | J139: 141 | K139: 1650 | L139: 9620 | M139: 10760 | N139: 10220
A140: Y6305-8 | B140: 1120 | C140: 82.3 | D140: 744 | E140: 94.7 | F140: 0.83 | G140: 1.8 | H140: 0.7 | I140: 6.0 | J140: 149 | K140: 1820 | L140: 10200 | M140: 11310 | N140: 10800
A141: Y6306-8 | B141: 1250 | C141: 91.7 | D141: 744 | E141: 94.8 | F141: 0.83 | G141: 1.8 | H141: 0.7 | I141: 6.0 | J141: 157 | K141: 2001 | L141: 10570 | M141: 11680 | N141: 11170
A142: Y6307-8 | B142: 1400 | C142: 103 | D142: 745 | E142: 94.9 | F142: 0.83 | G142: 1.8 | H142: 0.7 | I142: 6.0 | J142: 165 | K142: 2182 | L142: 10940 | M142: 12050 | N142: 11540
A143: Y6308-8 | B143: 1600 | C143: 117 | D143: 745 | E143: 94.9 | F143: 0.83 | G143: 1.8 | H143: 0.7 | I143: 6.0 | J143: 173 | K143: 2363 | L143: 11310 | M143: 12420 | N143: 11910
A144: Y6309-8 | B144: 1800 | C144: 132 | D144: 745 | E144: 94.9 | F144: 0.83 | G144: 1.8 | H144: 0.7 | I144: 6.0 | J144: 181 | K144: 2544 | L144: 11680 | M144: 12790 | N144: 12280
A145: Y4505-10 | B145: 220 | C145: 19.4 | D145: 590 | E145: 91.0 | F145: 0.72 | G145: 1.8 | H145: 0.7 | I145: 5.5 | J145: 26 | K145: 680 | L145: 3700 | M145: 4000 | N145: 3850
A146: Y4506-10 | B146: 250 | C146: 21.7 | D146: 590 | E146: 91.2 | F146: 0.73 | G146: 1.8 | H146: 0.7 | I146: 5.5 | J146: 27 | K146: 710 | L146: 3780 | M146: 4100 | N146: 3950
A147: Y500S1-10 | B147: 220 | C147: 19.4 | D147: 592 | E147: 91.0 | F147: 0.72 | G147: 1.8 | H147: 0.7 | I147: 5.5 | J147: 27.0 | K147: 740 | L147: 4500 | M147: 5460 | N147: 4850
A148: Y5001-10 | B148: 250 | C148: 21.7 | D148: 592 | E148: 91.2 | F148: 0.73 | G148: 1.8 | H148: 0.7 | I148: 5.5 | J148: 27.5 | K148: 820 | L148: 4600 | M148: 5560 | N148: 4950
A149: Y5002-10 | B149: 280 | C149: 23.8 | D149: 592 | E149: 91.6 | F149: 0.74 | G149: 1.8 | H149: 0.7 | I149: 5.5 | J149: 28.0 | K149: 910 | L149: 4720 | M149: 5680 | N149: 5070
A150: Y5003-10 | B150: 315 | C150: 26.7 | D150: 592 | E150: 91.9 | F150: 0.74 | G150: 1.8 | H150: 0.7 | I150: 5.5 | J150: 30.0 | K150: 1014 | L150: 4840 | M150: 5800 | N150: 5190
A151: Y5004-10 | B151: 355 | C151: 29.7 | D151: 592 | E151: 92.1 | F151: 0.75 | G151: 1.8 | H151: 0.7 | I151: 5.5 | J151: 31.3 | K151: 1131 | L151: 4970 | M151: 5930 | N151: 5320
A152: Y5005-10 | B152: 400 | C152: 33.4 | D152: 592 | E152: 92.3 | F152: 0.75 | G152: 1.8 | H152: 0.7 | I152: 5.5 | J152: 32.0 | K152: 1261 | L152: 5090 | M152: 6050 | N152: 5440
A153: Y5006-10 | B153: 450 | C153: 36.5 | D153: 592 | E153: 92.5 | F153: 0.77 | G153: 1.8 | H153: 0.7 | I153: 5.5 | J153: 32.7 | K153: 1371 | L153: 5210 | M153: 6170 | N153: 5560
A154: Y5007-10 | B154: 500 | C154: 40.4 | D154: 593 | E154: 92.7 | F154: 0.77 | G154: 1.8 | H154: 0.7 | I154: 5.5 | J154: 33.4 | K154: 1480 | L154: 5330 | M154: 6290 | N154: 5680
A155: Y560S1-10 | B155: 450 | C155: 36.5 | D155: 593 | E155: 92.5 | F155: 0.77 | G155: 1.8 | H155: 0.7 | I155: 6.0 | J155: 75.0 | K155: 1403 | L155: 6160 | M155: 7180 | N155: 6660
A156: Y5601-10 | B156: 500 | C156: 40.4 | D156: 594 | E156: 92.7 | F156: 0.77 | G156: 1.8 | H156: 0.7 | I156: 6.0 | J156: 80.0 | K156: 1544 | L156: 6360 | M156: 7380 | N156: 6860
A157: Y5602-10 | B157: 560 | C157: 44.6 | D157: 594 | E157: 92.9 | F157: 0.78 | G157: 1.8 | H157: 0.7 | I157: 6.0 | J157: 84.0 | K157: 1710 | L157: 6570 | M157: 7590 | N157: 7170
A158: Y5603-10 | B158: 630 | C158: 50.1 | D158: 595 | E158: 93.1 | F158: 0.78 | G158: 1.8 | H158: 0.7 | I158: 6.0 | J158: 89.0 | K158: 1902 | L158: 6780 | M158: 7800 | N158: 7280
A159: Y5604-10 | B159: 710 | C159: 56.3 | D159: 595 | E159: 93.3 | F159: 0.78 | G159: 1.8 | H159: 0.7 | I159: 6.0 | J159: 94.0 | K159: 2090 | L159: 6990 | M159: 8010 | N159: 7490
A160: Y5605-10 | B160: 800 | C160: 61.6 | D160: 595 | E160: 93.8 | F160: 0.80 | G160: 1.8 | H160: 0.7 | I160: 6.0 | J160: 99.0 | K160: 2280 | L160: 7200 | M160: 8220 | N160: 7700
A161: Y5606-10 | B161: 900 | C161: 69.1 | D161: 595 | E161: 94.0 | F161: 0.80 | G161: 1.8 | H161: 0.7 | I161: 6.0 | J161: 104.0 | K161: 2400 | L161: 7410 | M161: 8430 | N161: 7910
A162: Y6303-10 | B162: 800 | C162: 61.6 | D162: 595 | E162: 93.8 | F162: 0.80 | G162: 1.8 | H162: 0.7 | I162: 6.0 | J162: 144.0 | K162: 2355 | L162: 9620 | M162: 10730 | N162: 10220
A163: Y6304-10 | B163: 900 | C163: 69.1 | D163: 595 | E163: 94.0 | F163: 0.80 | G163: 1.8 | H163: 0.7 | I163: 6.0 | J163: 153 | K163: 2614 | L163: 10200 | M163: 11310 | N163: 10800
A164: Y6305-10 | B164: 1000 | C164: 76.7 | D164: 596 | E164: 94.1 | F164: 0.80 | G164: 1.8 | H164: 0.7 | I164: 6.0 | J164: 161 | K164: 2870 | L164: 10570 | M164: 11680 | N164: 11170
A165: Y6306-10 | B165: 1120 | C165: 85.8 | D165: 596 | E165: 94.2 | F165: 0.80 | G165: 1.8 | H165: 0.7 | I165: 6.0 | J165: 169 | K165: 3170 | L165: 10930 | M165: 12040 | N165: 11530
A166: Y6307-10 | B166: 1250 | C166: 95.7 | D166: 596 | E166: 94.3 | F166: 0.80 | G166: 1.8 | H166: 0.7 | I166: 6.0 | J166: 177 | K166: 3470 | L166: 11290 | M166: 12400 | N166: 11890
A167: Y6308-10 | B167: 1400 | C167: 107 | D167: 596 | E167: 94.3 | F167: 0.80 | G167: 1.8 | H167: 0.7 | I167: 6.0 | J167: 185 | K167: 3770 | L167: 11650 | M167: 12760 | N167: 12250
A168: Y6309-10 | B168: 1600 | C168: 122 | D168: 596 | E168: 94.3 | F168: 0.80 | G168: 1.8 | H168: 0.7 | I168: 6.0 | J168: 193 | K168: 4070 | L168: 12010 | M168: 13120 | N168: 12610
A169: Y5003-12 | B169: 220 | C169: 19.4 | D169: 493 | E169: 90.9 | F169: 0.72 | G169: 1.8 | H169: 0.7 | I169: 5.5 | J169: 43 | K169: 1135 | L169: 4770 | M169: 5730 | N169: 5120
A170: Y5004-12 | B170: 250 | C170: 22.0 | D170: 493 | E170: 91.1 | F170: 0.72 | G170: 1.8 | H170: 0.7 | I170: 5.5 | J170: 47 | K170: 1210 | L170: 4880 | M170: 5840 | N170: 5230
A171: Y5005-12 | B171: 280 | C171: 24.6 | D171: 494 | E171: 91.3 | F171: 0.72 | G171: 1.8 | H171: 0.7 | I171: 5.5 | J171: 50 | K171: 1418 | L171: 5030 | M171: 5990 | N171: 5380
A172: Y5006-12 | B172: 315 | C172: 27.2 | D172: 494 | E172: 91.6 | F172: 0.73 | G172: 1.8 | H172: 0.7 | I172: 5.5 | J172: 53 | K172: 1618 | L172: 5180 | M172: 6140 | N172: 5530
A173: Y5007-12 | B173: 355 | C173: 30.6 | D173: 494 | E173: 91.8 | F173: 0.73 | G173: 1.8 | H173: 0.7 | I173: 5.5 | J173: 56 | K173: 1780 | L173: 5330 | M173: 6290 | N173: 5680
A174: Y560S1-12 | B174: 315 | C174: 27.2 | D174: 494 | E174: 91.6 | F174: 0.73 | G174: 1.8 | H174: 0.7 | I174: 6.0 | J174: 73 | K174: 1580 | L174: 6060 | M174: 7080 | N174: 6560
A175: Y5601-12 | B175: 355 | C175: 30.6 | D175: 495 | E175: 91.8 | F175: 0.73 | G175: 1.8 | H175: 0.7 | I175: 6.0 | J175: 77 | K175: 1763 | L175: 6255 | M175: 7275 | N175: 6755
A176: Y5602-12 | B176: 400 | C176: 34.4 | D176: 495 | E176: 92.0 | F176: 0.73 | G176: 1.8 | H176: 0.7 | I176: 6.0 | J176: 82 | K176: 1967 | L176: 6450 | M176: 7470 | N176: 6950
A177: Y5603-12 | B177: 450 | C177: 38.6 | D177: 495 | E177: 92.2 | F177: 0.73 | G177: 1.8 | H177: 0.7 | I177: 6.0 | J177: 87 | K177: 2190 | L177: 6640 | M177: 7660 | N177: 7140
A178: Y5604-12 | B178: 500 | C178: 42.8 | D178: 495 | E178: 92.5 | F178: 0.73 | G178: 1.8 | H178: 0.7 | I178: 6.0 | J178: 92 | K178: 2411 | L178: 6830 | M178: 7850 | N178: 7330
A179: Y5605-12 | B179: 560 | C179: 47.0 | D179: 495 | E179: 92.9 | F179: 0.74 | G179: 1.8 | H179: 0.7 | I179: 6.0 | J179: 97 | K179: 2600 | L179: 7020 | M179: 8040 | N179: 7520
A180: Y5606-12 | B180: 630 | C180: 52.8 | D180: 495 | E180: 93.1 | F180: 0.74 | G180: 1.8 | H180: 0.7 | I180: 6.0 | J180: 102 | K180: 2820 | L180: 7210 | M180: 8230 | N180: 7710
A181: Y6303-12 | B181: 560 | C181: 47.0 | D181: 495 | E181: 92.9 | F181: 0.74 | G181: 1.8 | H181: 0.7 | I181: 6.0 | J181: 119 | K181: 2672 | L181: 9600 | M181: 10710 | N181: 10200
A182: Y6304-12 | B182: 630 | C182: 52.8 | D182: 495 | E182: 93.1 | F182: 0.74 | G182: 1.8 | H182: 0.7 | I182: 6.0 | J182: 136 | K182: 2974 | L182: 10050 | M182: 11160 | N182: 10650
A183: Y6305-12 | B183: 710 | C183: 59.4 | D183: 495 | E183: 93.3 | F183: 0.74 | G183: 1.8 | H183: 0.7 | I183: 6.0 | J183: 152 | K183: 3313 | L183: 10450 | M183: 11560 | N183: 11050
A184: Y6306-12 | B184: 800 | C184: 66.5 | D184: 495 | E184: 93.8 | F184: 0.74 | G184: 1.8 | H184: 0.7 | I184: 6.0 | J184: 160 | K184: 3688 | L184: 10820 | M184: 11930 | N184: 11420
A185: Y6307-12 | B185: 900 | C185: 74.9 | D185: 495 | E185: 93.8 | F185: 0.74 | G185: 1.8 | H185: 0.7 | I185: 6.0 | J185: 168 | K185: 4063 | L185: 11190 | M185: 12300 | N185: 11790
A186: Y6308-12 | B186: 1000 | C186: 83.2 | D186: 495 | E186: 93.8 | F186: 0.74 | G186: 1.8 | H186: 0.7 | I186: 6.0 | J186: 176 | K186: 4438 | L186: 11560 | M186: 12670 | N186: 12160
A187: Y6309-12 | B187: 1120 | C187: 93.2 | D187: 495 | E187: 93.8 | F187: 0.74 | G187: 1.8 | H187: 0.7 | I187: 6.0 | J187: 184 | K187: 4813 | L187: 11930 | M187: 13040 | N187: 12530
A189: 注：表中重量仅供参考
